{"text_format":"1","workbook":"xlsx","n_sheets":5,"sheets":["Accueil","Calcul de l'aide - AIPL","Versions du fichier","Menus","Log"],"not_rendered":{"charts":0,"images":4,"macros":1,"external_links":0,"defined_names":54,"comments":1,"pivot_tables":0},"unopened":[],"bounds":{"document_bytes":16777216,"sheet_cells":100000,"rows_first":2000,"rows_last":500,"rows_between":2000,"halvings":0,"cell_chars":16384,"cell_head_chars":4096},"cells_cut":0,"cells_raw":0,"read":"whole","date_system":"1900"}

{"sheet":"Accueil","index":0,"n_rows":22,"n_cols":4,"rows_kept":22,"cut":false,"hidden":false,"merged":[[14,3,14,13],[21,3,21,13],[17,3,18,13]]}
[]
[]
[]
[]
[]
[]
[]
[]
[]
[]
[]
[]
[]
[]
[null,null,null,"Programme d’investissement en aménagement forestier (PIAF) - Volet II\nForêt publique\nAnnexe au rapport et au calcul de l'aide à la récolte et au transport des volumes de feuillus durs\net de peuplier de trituration dans les aires d’intensification de la production ligneuse (AIPL)\n2023-2024"]
[]
[]
[null,null,null,"L'activation du contenu de ce fichier est requise afin d'assurer l'exécution des macro-commandes qui sont nécessaires\nà son bon fonctionnement."]
[]
[]
[]
[null,null,null,"https://support.office.com/fr-fr/article/activer-ou-d%C3%A9sactiver-les-macros-dans-les-fichiers-office-12b036fd-d140-4e74-b45e-16fed1a7e5c6"]

{"sheet":"Calcul de l'aide - AIPL","index":1,"n_rows":171,"n_cols":102,"rows_kept":171,"cut":false,"hidden":true,"merged":[[1,0,1,8],[19,0,19,5],[17,0,17,5],[2,0,2,6],[7,0,7,5],[11,4,11,5],[9,0,9,4],[8,6,8,8],[8,0,8,5],[10,0,10,5],[12,0,12,5],[13,0,13,8],[33,0,33,5],[14,0,14,5],[27,0,27,5],[28,0,28,5],[15,0,15,5],[16,0,16,8],[25,0,25,5],[23,0,23,5],[30,0,30,5],[18,0,18,5],[20,0,20,5],[22,0,22,5],[31,0,31,5],[21,0,21,5],[32,0,32,8],[26,0,26,8],[56,0,56,5],[56,6,56,8],[57,0,58,5],[57,6,58,8],[24,0,24,5],[35,0,35,5],[53,6,55,8],[48,0,48,5],[48,6,48,8],[38,0,38,8],[46,0,47,5],[46,6,47,8],[49,0,49,8],[50,0,50,8],[51,0,51,8],[53,0,55,5],[59,0,59,5],[59,6,59,8],[70,0,70,5],[70,6,70,8],[60,0,60,8],[61,0,61,8],[62,0,62,8],[63,0,63,8],[64,0,66,5],[64,6,66,8],[67,0,67,5],[67,6,67,8],[68,0,69,5],[68,6,69,8],[37,0,37,8],[39,0,39,8],[40,0,40,8],[41,0,41,8],[42,0,44,5],[42,6,44,8],[29,0,29,8],[52,0,52,8],[0,0,0,8],[5,0,5,5],[6,0,6,5],[3,0,3,5],[5,6,5,8],[6,6,6,8],[7,6,7,8],[3,6,3,8],[4,0,4,8],[36,0,36,5],[34,0,34,8],[2,7,2,8],[45,0,45,5],[45,6,45,8]]}
[]
["Programme d’investissement en aménagement forestier (PIAF) - Volet II\nForêt publique\nAnnexe au rapport et au calcul de l'aide à la récolte et au transport des volumes de feuillus durs\net de peuplier de trituration dans les aires d’intensification de la production ligneuse (AIPL)\n2023-2024\n\n"]
[" *** Veuillez saisir les informations dans les cellules blanches (Planification et BGAD) et jaunes (Ministère) ***",null,null,null,null,null,null,"Version 1 : 2023-07-05"]
["Contexte d'utilisation"]
["Identification"]
["Unité d'aménagement (UA)"]
["Secteur d'intervention"]
["Unité de compilation"]
["Numéro de la prescription"]
["Zone de tarification\nValeur requise pour déterminer l'admissibilité et établir le montant de l'aide",null,null,null,null,{"$f":"IFERROR(IF(ISNUMBER(VLOOKUP(I10,Menus!$A$190:$A$211,1,FALSE)),\"Question\",\"Non_admissible\"),\"Question\")","v":"Non_admissible"}]
["Traitement (code DICA)"]
["Traitement (code RATF)",null,null,null,{"$f":"IFERROR(VLOOKUP($I$11,Codes_DICA_INDIRECT,3,FALSE),\"RATF_Inscrire_une_valeur\")","v":"RATF_Inscrire_une_valeur"}]
["Inscrire les renseignements dans la colonne associée au contexte d'utilisation",null,null,null,null,null,"Planification","BGAD","Ministère"]
["Admissibilité"]
["Secteur identifié en tant que aire d'intensification de la production ligneuse (AIPL)\nau Registre officiel des AIPL disponible sur le site de Données Québec"]
["Est-ce que les bois de trituration ont été récoltés et transportés ?"]
["Intrants pour le calcul"]
["Volume total net (m³/ha)"]
["Volume net pour les feuillus durs (m³/ha)"]
["Volume net pour les peupliers (m³/ha) "]
["Volume net pour le SEPM (m³/ha)",null,null,null,null,null,{"$f":"IFERROR(IF($G$18-$G$19-$G$20<0,\"Valider G18\",IF(AND(ISBLANK($G$18),OR(ISBLANK($G$19)=FALSE,ISBLANK($G$20)=FALSE)),\"Valider G18\",$G$18-$G$19-$G$20)),0)","v":0},{"$f":"IFERROR(IF(OR(EXACT(UPPER($G$4),UPPER(Menus!$A$254)),EXACT(UPPER($G$4),UPPER(Menus!$A$255))),IF($H$18-$H$19-$H$20<0,\"Valider H18\",IF(AND(ISBLANK($H$18),OR(ISBLANK($H$19)=FALSE,ISBLANK($H$20)=FALSE)),\"Valider H18\",$H$18-$H$19-$H$20)),0),0)","v":0},{"$f":"IFERROR(IF(EXACT(UPPER($G$4),UPPER(Menus!$A$255)),IF($I$18-$I$19-$I$20<0,\"Valider I18\",IF(AND(ISBLANK($I$18),OR(ISBLANK($I$19)=FALSE,ISBLANK($I$20)=FALSE)),\"Valider I18\",$I$18-$I$19-$I$20)),0),0)","v":0}]
["Pourcentage de diminution du taux (%)\nLes réponses de la section « Récolte » sont utilisées pour établir le calcul",null,null,null,null,null,{"$f":"IFERROR(IF(EXACT(Menus!$C$238,Penalite_1),Menus!$D$238,IF(EXACT(Menus!$C$239,Penalite_2),Menus!$D$239,IF(EXACT(Menus!$C$240,Penalite_3),Menus!$D$240,0))),0)","v":0},{"$f":"IFERROR(IF(OR(EXACT(UPPER($G$4),UPPER(Menus!$A$254)),EXACT(UPPER($G$4),UPPER(Menus!$A$255))),IF(EXACT(Menus!$C$243,Penalite_1),Menus!$D$243,IF(EXACT(Menus!$C$244,Penalite_2),Menus!$D$244,IF(EXACT(Menus!$C$245,Penalite_3),Menus!$D$245,0))),0),0)","v":0},{"$f":"IFERROR(IF(EXACT(UPPER($G$4),UPPER(Menus!$A$255)),IF(EXACT(Menus!$C$248,Penalite_1),Menus!$D$248,IF(EXACT(Menus!$C$249,Penalite_2),Menus!$D$249,IF(EXACT(Menus!$C$250,Penalite_3),Menus!$D$250,0))),0),0)","v":0}]
["Proportion du volume PEU laissé en forêt selon la moyenne régionale",null,null,null,null,null,{"$f":"IFERROR(IF(EXACT(UPPER($G$28),UPPER(Menus!$A$3)),VLOOKUP('Calcul de l''aide - AIPL'!$I$10,Menus!$A$190:$B$212,2,FALSE),\"S/O\"),0)","v":"S/O"},{"$f":"IFERROR(IF(EXACT(UPPER($H$28),UPPER(Menus!$A$3)),VLOOKUP('Calcul de l''aide - AIPL'!$I$10,Menus!$A$190:$B$212,2,FALSE),\"S/O\"),0)","v":"S/O"},{"$f":"IFERROR(IF(EXACT(UPPER($I$28),UPPER(Menus!$A$3)),VLOOKUP('Calcul de l''aide - AIPL'!$I$10,Menus!$A$190:$B$212,2,FALSE),\"S/O\"),0)","v":"S/O"}]
["Taux d'aide ($/m³)",null,null,null,null,null,{"$f":"IFERROR(IF(SUM($G$19:$G$20)<=Menus!$B$230,0,IF(OR(ISBLANK($G$15),EXACT(UPPER($G$15),UPPER(Menus!$A$3))),0,IF(ISBLANK($G$28),0,IF(EXACT(VLOOKUP($I$10,Menus!$A$190:$C$212,2,FALSE),Menus!$B$190),0,Menus!$B$215+$G$19*Menus!$B$216+$G$20*Menus!$B$217)))),0)","v":0},{"$f":"IFERROR(IF(SUM($H$19:$H$20)<=Menus!$B$230,0,IF(OR(ISBLANK($H$15),EXACT(UPPER($H$15),UPPER(Menus!$A$3))),0,IF(ISBLANK($H$28),0,IF(EXACT(VLOOKUP($I$10,Menus!$A$190:$C$212,2,FALSE),Menus!$B$190),0,Menus!$B$215+$H$19*Menus!$B$216+$H$20*Menus!$B$217)))),0)","v":0},{"$f":"IFERROR(IF(SUM($I$19:$I$20)<=Menus!$B$230,0,IF(OR(ISBLANK($I$15),EXACT(UPPER($I$15),UPPER(Menus!$A$3))),0,IF(ISBLANK($I$28),0,IF(EXACT(VLOOKUP($I$10,Menus!$A$190:$C$212,2,FALSE),Menus!$B$190),0,Menus!$B$215+$I$19*Menus!$B$216+$I$20*Menus!$B$217)))),0)","v":0}]
["Taux d'aide ($/ha)",null,null,null,null,null,{"$f":"IF($G$24*($G$19+$G$20)>Menus!$B$229,Menus!$B$229,$G$24*($G$19+$G$20))","v":0},{"$f":"IF($H$24*($H$19+$H$20)>Menus!$B$229,Menus!$B$229,$H$24*($H$19+$H$20))","v":0},{"$f":"IF($I$24*($I$19+$I$20)>Menus!$B$229,Menus!$B$229,$I$24*($I$19+$I$20))","v":0}]
["Taux d'aide théorique ($/m³) \nL'aide finale $/ha est modulée en fonction de la zone de tarification et de la\nproportion du volume laissé en forêt",null,null,null,null,null,{"$f":"IFERROR(IF(ISBLANK($I$10),\"Valider I10\",IF(ISBLANK($G$15),\"Valider G15\",IF(ISBLANK($G$28),\"Valider G21\",IF(ISNUMBER($G$21),IF($G$22=0,$G$25,(1+$G$22)*$G$25),0)))),0)","v":"Valider I10"},{"$f":"IFERROR(IF(ISBLANK($I$10),\"Valider I10\",IF(ISBLANK($H$15),\"Valider H15\",IF(ISBLANK($H$28),\"Valider H21\",IF(OR(EXACT($G$4,Menus!$A$254),EXACT($G$4,Menus!$A$255)),IF(ISNUMBER($H$21),IF($H$22=0,$H$25,(1+$H$22)*$H$25),0),0)))),0)","v":"Valider I10"},{"$f":"IFERROR(IF(ISBLANK($I$10),\"Valider I10\",IF(ISBLANK($I$15),\"Valider I15\",IF(ISBLANK($I$28),\"Valider I21\",IF(EXACT($G$4,Menus!$A$255),IF(ISNUMBER($I$21),IF($I$22=0,$I$25,(1+$I$22)*$I$25),0),0)))),0)","v":"Valider I10"}]
["Récolte"]
["Est-ce que tout le volume des peupliers est récolté ?"]
["Est-ce que tout le volume de SEPM est récolté ?"]
["Mesurage"]
["Numéro du projet de mesurage 1\nLa saisie d'une valeur est optionnelle"]
["Numéro du projet de mesurage 2\nLa saisie d'une valeur est optionnelle"]
["Superficie"]
["Superficie (hectare)"]
["Résumé de l'aide à la récolte et au transport des volumes de feuillus durs et de peupliers de trituration\ndans les aires d’intensification de la production ligneuse (AIPL)"]
["Aide finale ($/ha) - taux à inscrire à l'état d'avancement et au RATF",null,null,null,null,null,{"$f":"IFERROR(IF(AND(ISNUMBER($G$21)=TRUE,$G$21>=0),IF(SUM($G$19:$G$20)>Seuil_MLNU,IF(ROUND(IF(AND(EXACT(UPPER($G$15),UPPER(Menus!$A$2)),ISBLANK($G$18)=FALSE,ISBLANK($G$19)=FALSE,ISBLANK($G$20)=FALSE,ISBLANK($G$28)=FALSE,ISBLANK($G$29)=FALSE,EXACT(UPPER($G$16),UPPER(Menus!$A$2))),(Menus!$B$215+(Menus!$B$216*$G$19)+(Menus!$B$217*$G$20))*(1+$G$22)*VLOOKUP($I$10,Tableau_AIPL,3,FALSE)*SUM($G$19:$G$20),0),2)>Menus!$B$229,Menus!$B$229,ROUND(IF(AND(ISNUMBER($G$21)=TRUE,$G$21>=0),IF(SUM($G$19:$G$20)>Seuil_MLNU,IF(AND(EXACT(UPPER($G$15),UPPER(Menus!$A$2)),ISBLANK($G$18)=FALSE,ISBLANK($G$19)=FALSE,ISBLANK($G$20)=FALSE,ISBLANK($G$28)=FALSE,ISBLANK($G$29)=FALSE,EXACT(UPPER($G$16),UPPER(Menus!$A$2))),(Menus!$B$215+(Menus!$B$216*$G$19)+(Menus!$B$217*$G$20))*(1+$G$22)*VLOOKUP($I$10,Tableau_AIPL,3,FALSE)*SUM($G$19:$G$20),0),0),0),2)),0),0),0)","v":0},{"$f":"IFERROR(IF(AND(ISNUMBER($H$21)=TRUE,$H$21>=0),IF(SUM($H$19:$H$20)>Seuil_MLNU,IF(ROUND(IF(OR(EXACT(UPPER($G$4),UPPER(Menus!$A$254)),EXACT(UPPER($G$4),UPPER(Menus!$A$255))),IF(AND(EXACT(UPPER($H$15),UPPER(Menus!$A$2)),ISBLANK($H$18)=FALSE,ISBLANK($H$19)=FALSE,ISBLANK($H$20)=FALSE,ISBLANK($H$28)=FALSE,ISBLANK($H$29)=FALSE,EXACT(UPPER($H$16),UPPER(Menus!$A$2))),(Menus!$B$215+(Menus!$B$216*$H$19)+(Menus!$B$217*$H$20))*(1+$H$22)*VLOOKUP($I$10,Tableau_AIPL,3,FALSE)*SUM($H$19:$H$20),0),0),2)>Menus!$B$229,Menus!$B$229,ROUND(IF(AND(ISNUMBER($H$21)=TRUE,$H$21>=0),IF(SUM($H$19:$H$20)>Seuil_MLNU,IF(OR(EXACT(UPPER($G$4),UPPER(Menus!$A$254)),EXACT(UPPER($G$4),UPPER(Menus!$A$255))),IF(AND(EXACT(UPPER($H$15),UPPER(Menus!$A$2)),ISBLANK($H$18)=FALSE,ISBLANK($H$19)=FALSE,ISBLANK($H$20)=FALSE,ISBLANK($H$28)=FALSE,ISBLANK($H$29)=FALSE,EXACT(UPPER($H$16),UPPER(Menus!$A$2))),(Menus!$B$215+(Menus!$B$216*$H$19)+(Menus!$B$217*$H$20))*(1+$H$22)*VLOOKUP($I$10,Tableau_AIPL,3,FALSE)*SUM($H$19:$H$20),0),0),0),0),2)),0),0),0)","v":0},{"$f":"IFERROR(IF(AND(ISNUMBER($I$21)=TRUE,$I$21>=0),IF(SUM($I$19:$I$20)>Seuil_MLNU,IF(ROUND(IF(EXACT(UPPER($G$4),UPPER(Menus!$A$255)),IF(AND(EXACT(UPPER($I$15),UPPER(Menus!$A$2)),ISBLANK($I$18)=FALSE,ISBLANK($I$19)=FALSE,ISBLANK($I$20)=FALSE,ISBLANK($I$28)=FALSE,ISBLANK($I$29)=FALSE,EXACT(UPPER($I$16),UPPER(Menus!$A$2))),(Menus!$B$215+(Menus!$B$216*$I$19)+(Menus!$B$217*$I$20))*(1+$I$22)*VLOOKUP($I$10,Tableau_AIPL,3,FALSE)*SUM($I$19:$I$20),0),0),2)>Menus!$B$229,Menus!$B$229,ROUND(IF(AND(ISNUMBER($I$21)=TRUE,$I$21>=0),IF(SUM($I$19:$I$20)>Seuil_MLNU,IF(EXACT(UPPER($G$4),UPPER(Menus!$A$255)),IF(AND(EXACT(UPPER($I$15),UPPER(Menus!$A$2)),ISBLANK($I$18)=FALSE,ISBLANK($I$19)=FALSE,ISBLANK($I$20)=FALSE,ISBLANK($I$28)=FALSE,ISBLANK($I$29)=FALSE,EXACT(UPPER($I$16),UPPER(Menus!$A$2))),(Menus!$B$215+(Menus!$B$216*$I$19)+(Menus!$B$217*$I$20))*(1+$I$22)*VLOOKUP($I$10,Tableau_AIPL,3,FALSE)*SUM($I$19:$I$20),0),0),0),0),2)),0),0),0)","v":0}]
["Aide finale ($)",null,null,null,null,null,{"$f":"IFERROR(ROUND($G$34*$G$36,2),0)","v":0},{"$f":"IFERROR(ROUND($H$34*$H$36,2),0)","v":0},{"$f":"IFERROR(ROUND($I$34*$I$36,2),0)","v":0}]
[]
["Section réservée à l'usage de la Planification"]
["Remarques"]
[]
["J'atteste que les renseignements fournis dans ce document afin de calculer l'aide supplémentaire sont complets et conformes à la vérité, au meilleur de mes connaissances."]
[]
[]
[]
["Nom et prénom de l'ingénieur forestier",null,null,null,null,null,"No de permis"]
[null,null,null,null,null,null,{"$f":"TODAY()","v":"2023-07-05"}]
[]
["Signature de l'ingénieur forestier",null,null,null,null,null,"Date (AAAA-MM-JJ)"]
["Section réservée à l'usage du BGAD"]
["Remarques"]
[]
["J'atteste que les renseignements fournis dans ce document afin de calculer l'aide supplémentaire sont complets et conformes à la vérité, au meilleur de mes connaissances."]
[]
[]
[]
["Nom et prénom de l'ingénieur forestier",null,null,null,null,null,"No de permis"]
[null,null,null,null,null,null,{"$f":"TODAY()","v":"2023-07-05"}]
[]
["Signature de l'ingénieur forestier",null,null,null,null,null,"Date (AAAA-MM-JJ)"]
["Section réservée à l'usage du Ministère"]
["Remarques"]
[]
["J'atteste que les renseignements fournis dans ce document afin de calculer l'aide supplémentaire sont complets et conformes à la vérité, au meilleur de mes connaissances."]
[]
[]
[]
["Nom et prénom de l'ingénieur forestier",null,null,null,null,null,"No de permis"]
[null,null,null,null,null,null,{"$f":"TODAY()","v":"2023-07-05"}]
[]
["Signature de l'ingénieur forestier",null,null,null,null,null,"Date (AAAA-MM-JJ)"]
[null,null,null,null,null,null,null,null,null,null,null,null,null,null,null,null,null,null,null,null,null,null,null,null,null,null,null,null,null,null,null,null,null,null,null,null,null,null,null,null,null,null,null,null,null,null,null,null,null,null,null,null,null,null,null,null,null,null,null,null,null,null,null,null,null,null,null,null,null,null,null,null,null,null,null,null,null,null,null,null,null,null,null,null,null,null,null,null,null,null,null,null,null,null,null,null,null,null,null,null,455,0]
[null,null,null,null,null,null,null,null,null,null,null,null,null,null,null,null,null,null,null,null,null,null,null,null,null,null,null,null,null,null,null,null,null,null,null,null,null,null,null,null,null,null,null,null,null,null,null,null,null,null,null,null,null,null,null,null,null,null,null,null,null,null,null,null,null,null,null,null,null,null,null,null,null,null,null,null,null,null,null,null,null,null,null,null,null,null,null,null,null,null,null,null,null,null,null,null,null,null,null,null,456,0]
[null,null,null,null,null,null,null,null,null,null,null,null,null,null,null,null,null,null,null,null,null,null,null,null,null,null,null,null,null,null,null,null,null,null,null,null,null,null,null,null,null,null,null,null,null,null,null,null,null,null,null,null,null,null,null,null,null,null,null,null,null,null,null,null,null,null,null,null,null,null,null,null,null,null,null,null,null,null,null,null,null,null,null,null,null,null,null,null,null,null,null,null,null,null,null,null,null,null,null,null,457,0]
[null,null,null,null,null,null,null,null,null,null,null,null,null,null,null,null,null,null,null,null,null,null,null,null,null,null,null,null,null,null,null,null,null,null,null,null,null,null,null,null,null,null,null,null,null,null,null,null,null,null,null,null,null,null,null,null,null,null,null,null,null,null,null,null,null,null,null,null,null,null,null,null,null,null,null,null,null,null,null,null,null,null,null,null,null,null,null,null,null,null,null,null,null,null,null,null,null,null,null,null,458,60]
[null,null,null,null,null,null,null,null,null,null,null,null,null,null,null,null,null,null,null,null,null,null,null,null,null,null,null,null,null,null,null,null,null,null,null,null,null,null,null,null,null,null,null,null,null,null,null,null,null,null,null,null,null,null,null,null,null,null,null,null,null,null,null,null,null,null,null,null,null,null,null,null,null,null,null,null,null,null,null,null,null,null,null,null,null,null,null,null,null,null,null,null,null,null,null,null,null,null,null,null,459,60]
[null,null,null,null,null,null,null,null,null,null,null,null,null,null,null,null,null,null,null,null,null,null,null,null,null,null,null,null,null,null,null,null,null,null,null,null,null,null,null,null,null,null,null,null,null,null,null,null,null,null,null,null,null,null,null,null,null,null,null,null,null,null,null,null,null,null,null,null,null,null,null,null,null,null,null,null,null,null,null,null,null,null,null,null,null,null,null,null,null,null,null,null,null,null,null,null,null,null,null,null,460,200]
[null,null,null,null,null,null,null,null,null,null,null,null,null,null,null,null,null,null,null,null,null,null,null,null,null,null,null,null,null,null,null,null,null,null,null,null,null,null,null,null,null,null,null,null,null,null,null,null,null,null,null,null,null,null,null,null,null,null,null,null,null,null,null,null,null,null,null,null,null,null,null,null,null,null,null,null,null,null,null,null,null,null,null,null,null,null,null,null,null,null,null,null,null,null,null,null,null,null,null,null,461,240]
[null,null,null,null,null,null,null,null,null,null,null,null,null,null,null,null,null,null,null,null,null,null,null,null,null,null,null,null,null,null,null,null,null,null,null,null,null,null,null,null,null,null,null,null,null,null,null,null,null,null,null,null,null,null,null,null,null,null,null,null,null,null,null,null,null,null,null,null,null,null,null,null,null,null,null,null,null,null,null,null,null,null,null,null,null,null,null,null,null,null,null,null,null,null,null,null,null,null,null,null,551,0]
[null,null,null,null,null,null,null,null,null,null,null,null,null,null,null,null,null,null,null,null,null,null,null,null,null,null,null,null,null,null,null,null,null,null,null,null,null,null,null,null,null,null,null,null,null,null,null,null,null,null,null,null,null,null,null,null,null,null,null,null,null,null,null,null,null,null,null,null,null,null,null,null,null,null,null,null,null,null,null,null,null,null,null,null,null,null,null,null,null,null,null,null,null,null,null,null,null,null,null,null,650,0]
[null,null,null,null,null,null,null,null,null,null,null,null,null,null,null,null,null,null,null,null,null,null,null,null,null,null,null,null,null,null,null,null,null,null,null,null,null,null,null,null,null,null,null,null,null,null,null,null,null,null,null,null,null,null,null,null,null,null,null,null,null,null,null,null,null,null,null,null,null,null,null,null,null,null,null,null,null,null,null,null,null,null,null,null,null,null,null,null,null,null,null,null,null,null,null,null,null,null,null,null,651,40]
[null,null,null,null,null,null,null,null,null,null,null,null,null,null,null,null,null,null,null,null,null,null,null,null,null,null,null,null,null,null,null,null,null,null,null,null,null,null,null,null,null,null,null,null,null,null,null,null,null,null,null,null,null,null,null,null,null,null,null,null,null,null,null,null,null,null,null,null,null,null,null,null,null,null,null,null,null,null,null,null,null,null,null,null,null,null,null,null,null,null,null,null,null,null,null,null,null,null,null,null,652,200]
[null,null,null,null,null,null,null,null,null,null,null,null,null,null,null,null,null,null,null,null,null,null,null,null,null,null,null,null,null,null,null,null,null,null,null,null,null,null,null,null,null,null,null,null,null,null,null,null,null,null,null,null,null,null,null,null,null,null,null,null,null,null,null,null,null,null,null,null,null,null,null,null,null,null,null,null,null,null,null,null,null,null,null,null,null,null,null,null,null,null,null,null,null,null,null,null,null,null,null,null,653,140]
[null,null,null,null,null,null,null,null,null,null,null,null,null,null,null,null,null,null,null,null,null,null,null,null,null,null,null,null,null,null,null,null,null,null,null,null,null,null,null,null,null,null,null,null,null,null,null,null,null,null,null,null,null,null,null,null,null,null,null,null,null,null,null,null,null,null,null,null,null,null,null,null,null,null,null,null,null,null,null,null,null,null,null,null,null,null,null,null,null,null,null,null,null,null,null,null,null,null,null,null,654,200]
[null,null,null,null,null,null,null,null,null,null,null,null,null,null,null,null,null,null,null,null,null,null,null,null,null,null,null,null,null,null,null,null,null,null,null,null,null,null,null,null,null,null,null,null,null,null,null,null,null,null,null,null,null,null,null,null,null,null,null,null,null,null,null,null,null,null,null,null,null,null,null,null,null,null,null,null,null,null,null,null,null,null,null,null,null,null,null,null,null,null,null,null,null,null,null,null,null,null,null,null,655,40]
[null,null,null,null,null,null,null,null,null,null,null,null,null,null,null,null,null,null,null,null,null,null,null,null,null,null,null,null,null,null,null,null,null,null,null,null,null,null,null,null,null,null,null,null,null,null,null,null,null,null,null,null,null,null,null,null,null,null,null,null,null,null,null,null,null,null,null,null,null,null,null,null,null,null,null,null,null,null,null,null,null,null,null,null,null,null,null,null,null,null,null,null,null,null,null,null,null,null,null,null,656,140]
[null,null,null,null,null,null,null,null,null,null,null,null,null,null,null,null,null,null,null,null,null,null,null,null,null,null,null,null,null,null,null,null,null,null,null,null,null,null,null,null,null,null,null,null,null,null,null,null,null,null,null,null,null,null,null,null,null,null,null,null,null,null,null,null,null,null,null,null,null,null,null,null,null,null,null,null,null,null,null,null,null,null,null,null,null,null,null,null,null,null,null,null,null,null,null,null,null,null,null,null,657,140]
[null,null,null,null,null,null,null,null,null,null,null,null,null,null,null,null,null,null,null,null,null,null,null,null,null,null,null,null,null,null,null,null,null,null,null,null,null,null,null,null,null,null,null,null,null,null,null,null,null,null,null,null,null,null,null,null,null,null,null,null,null,null,null,null,null,null,null,null,null,null,null,null,null,null,null,null,null,null,null,null,null,null,null,null,null,null,null,null,null,null,null,null,null,null,null,null,null,null,null,null,658,220]
[null,null,null,null,null,null,null,null,null,null,null,null,null,null,null,null,null,null,null,null,null,null,null,null,null,null,null,null,null,null,null,null,null,null,null,null,null,null,null,null,null,null,null,null,null,null,null,null,null,null,null,null,null,null,null,null,null,null,null,null,null,null,null,null,null,null,null,null,null,null,null,null,null,null,null,null,null,null,null,null,null,null,null,null,null,null,null,null,null,null,null,null,null,null,null,null,null,null,null,null,659,280]
[null,null,null,null,null,null,null,null,null,null,null,null,null,null,null,null,null,null,null,null,null,null,null,null,null,null,null,null,null,null,null,null,null,null,null,null,null,null,null,null,null,null,null,null,null,null,null,null,null,null,null,null,null,null,null,null,null,null,null,null,null,null,null,null,null,null,null,null,null,null,null,null,null,null,null,null,null,null,null,null,null,null,null,null,null,null,null,null,null,null,null,null,null,null,null,null,null,null,null,null,660,160]
[null,null,null,null,null,null,null,null,null,null,null,null,null,null,null,null,null,null,null,null,null,null,null,null,null,null,null,null,null,null,null,null,null,null,null,null,null,null,null,null,null,null,null,null,null,null,null,null,null,null,null,null,null,null,null,null,null,null,null,null,null,null,null,null,null,null,null,null,null,null,null,null,null,null,null,null,null,null,null,null,null,null,null,null,null,null,null,null,null,null,null,null,null,null,null,null,null,null,null,null,661,40]
[null,null,null,null,null,null,null,null,null,null,null,null,null,null,null,null,null,null,null,null,null,null,null,null,null,null,null,null,null,null,null,null,null,null,null,null,null,null,null,null,null,null,null,null,null,null,null,null,null,null,null,null,null,null,null,null,null,null,null,null,null,null,null,null,null,null,null,null,null,null,null,null,null,null,null,null,null,null,null,null,null,null,null,null,null,null,null,null,null,null,null,null,null,null,null,null,null,null,null,null,662,0]
[null,null,null,null,null,null,null,null,null,null,null,null,null,null,null,null,null,null,null,null,null,null,null,null,null,null,null,null,null,null,null,null,null,null,null,null,null,null,null,null,null,null,null,null,null,null,null,null,null,null,null,null,null,null,null,null,null,null,null,null,null,null,null,null,null,null,null,null,null,null,null,null,null,null,null,null,null,null,null,null,null,null,null,null,null,null,null,null,null,null,null,null,null,null,null,null,null,null,null,null,750,0]
[null,null,null,null,null,null,null,null,null,null,null,null,null,null,null,null,null,null,null,null,null,null,null,null,null,null,null,null,null,null,null,null,null,null,null,null,null,null,null,null,null,null,null,null,null,null,null,null,null,null,null,null,null,null,null,null,null,null,null,null,null,null,null,null,null,null,null,null,null,null,null,null,null,null,null,null,null,null,null,null,null,null,null,null,null,null,null,null,null,null,null,null,null,null,null,null,null,null,null,null,751,40]
[null,null,null,null,null,null,null,null,null,null,null,null,null,null,null,null,null,null,null,null,null,null,null,null,null,null,null,null,null,null,null,null,null,null,null,null,null,null,null,null,null,null,null,null,null,null,null,null,null,null,null,null,null,null,null,null,null,null,null,null,null,null,null,null,null,null,null,null,null,null,null,null,null,null,null,null,null,null,null,null,null,null,null,null,null,null,null,null,null,null,null,null,null,null,null,null,null,null,null,null,752,220]
[null,null,null,null,null,null,null,null,null,null,null,null,null,null,null,null,null,null,null,null,null,null,null,null,null,null,null,null,null,null,null,null,null,null,null,null,null,null,null,null,null,null,null,null,null,null,null,null,null,null,null,null,null,null,null,null,null,null,null,null,null,null,null,null,null,null,null,null,null,null,null,null,null,null,null,null,null,null,null,null,null,null,null,null,null,null,null,null,null,null,null,null,null,null,null,null,null,null,null,null,753,280]
[null,null,null,null,null,null,null,null,null,null,null,null,null,null,null,null,null,null,null,null,null,null,null,null,null,null,null,null,null,null,null,null,null,null,null,null,null,null,null,null,null,null,null,null,null,null,null,null,null,null,null,null,null,null,null,null,null,null,null,null,null,null,null,null,null,null,null,null,null,null,null,null,null,null,null,null,null,null,null,null,null,null,null,null,null,null,null,null,null,null,null,null,null,null,null,null,null,null,null,null,754,80]
[null,null,null,null,null,null,null,null,null,null,null,null,null,null,null,null,null,null,null,null,null,null,null,null,null,null,null,null,null,null,null,null,null,null,null,null,null,null,null,null,null,null,null,null,null,null,null,null,null,null,null,null,null,null,null,null,null,null,null,null,null,null,null,null,null,null,null,null,null,null,null,null,null,null,null,null,null,null,null,null,null,null,null,null,null,null,null,null,null,null,null,null,null,null,null,null,null,null,null,null,755,60]
[null,null,null,null,null,null,null,null,null,null,null,null,null,null,null,null,null,null,null,null,null,null,null,null,null,null,null,null,null,null,null,null,null,null,null,null,null,null,null,null,null,null,null,null,null,null,null,null,null,null,null,null,null,null,null,null,null,null,null,null,null,null,null,null,null,null,null,null,null,null,null,null,null,null,null,null,null,null,null,null,null,null,null,null,null,null,null,null,null,null,null,null,null,null,null,null,null,null,null,null,756,260]
[null,null,null,null,null,null,null,null,null,null,null,null,null,null,null,null,null,null,null,null,null,null,null,null,null,null,null,null,null,null,null,null,null,null,null,null,null,null,null,null,null,null,null,null,null,null,null,null,null,null,null,null,null,null,null,null,null,null,null,null,null,null,null,null,null,null,null,null,null,null,null,null,null,null,null,null,null,null,null,null,null,null,null,null,null,null,null,null,null,null,null,null,null,null,null,null,null,null,null,null,757,260]
[null,null,null,null,null,null,null,null,null,null,null,null,null,null,null,null,null,null,null,null,null,null,null,null,null,null,null,null,null,null,null,null,null,null,null,null,null,null,null,null,null,null,null,null,null,null,null,null,null,null,null,null,null,null,null,null,null,null,null,null,null,null,null,null,null,null,null,null,null,null,null,null,null,null,null,null,null,null,null,null,null,null,null,null,null,null,null,null,null,null,null,null,null,null,null,null,null,null,null,null,758,280]
[null,null,null,null,null,null,null,null,null,null,null,null,null,null,null,null,null,null,null,null,null,null,null,null,null,null,null,null,null,null,null,null,null,null,null,null,null,null,null,null,null,null,null,null,null,null,null,null,null,null,null,null,null,null,null,null,null,null,null,null,null,null,null,null,null,null,null,null,null,null,null,null,null,null,null,null,null,null,null,null,null,null,null,null,null,null,null,null,null,null,null,null,null,null,null,null,null,null,null,null,850,0]
[null,null,null,null,null,null,null,null,null,null,null,null,null,null,null,null,null,null,null,null,null,null,null,null,null,null,null,null,null,null,null,null,null,null,null,null,null,null,null,null,null,null,null,null,null,null,null,null,null,null,null,null,null,null,null,null,null,null,null,null,null,null,null,null,null,null,null,null,null,null,null,null,null,null,null,null,null,null,null,null,null,null,null,null,null,null,null,null,null,null,null,null,null,null,null,null,null,null,null,null,851,0]
[null,null,null,null,null,null,null,null,null,null,null,null,null,null,null,null,null,null,null,null,null,null,null,null,null,null,null,null,null,null,null,null,null,null,null,null,null,null,null,null,null,null,null,null,null,null,null,null,null,null,null,null,null,null,null,null,null,null,null,null,null,null,null,null,null,null,null,null,null,null,null,null,null,null,null,null,null,null,null,null,null,null,null,null,null,null,null,null,null,null,null,null,null,null,null,null,null,null,null,null,852,0]
[null,null,null,null,null,null,null,null,null,null,null,null,null,null,null,null,null,null,null,null,null,null,null,null,null,null,null,null,null,null,null,null,null,null,null,null,null,null,null,null,null,null,null,null,null,null,null,null,null,null,null,null,null,null,null,null,null,null,null,null,null,null,null,null,null,null,null,null,null,null,null,null,null,null,null,null,null,null,null,null,null,null,null,null,null,null,null,null,null,null,null,null,null,null,null,null,null,null,null,null,853,0]
[null,null,null,null,null,null,null,null,null,null,null,null,null,null,null,null,null,null,null,null,null,null,null,null,null,null,null,null,null,null,null,null,null,null,null,null,null,null,null,null,null,null,null,null,null,null,null,null,null,null,null,null,null,null,null,null,null,null,null,null,null,null,null,null,null,null,null,null,null,null,null,null,null,null,null,null,null,null,null,null,null,null,null,null,null,null,null,null,null,null,null,null,null,null,null,null,null,null,null,null,854,0]
[null,null,null,null,null,null,null,null,null,null,null,null,null,null,null,null,null,null,null,null,null,null,null,null,null,null,null,null,null,null,null,null,null,null,null,null,null,null,null,null,null,null,null,null,null,null,null,null,null,null,null,null,null,null,null,null,null,null,null,null,null,null,null,null,null,null,null,null,null,null,null,null,null,null,null,null,null,null,null,null,null,null,null,null,null,null,null,null,null,null,null,null,null,null,null,null,null,null,null,null,855,0]
[null,null,null,null,null,null,null,null,null,null,null,null,null,null,null,null,null,null,null,null,null,null,null,null,null,null,null,null,null,null,null,null,null,null,null,null,null,null,null,null,null,null,null,null,null,null,null,null,null,null,null,null,null,null,null,null,null,null,null,null,null,null,null,null,null,null,null,null,null,null,null,null,null,null,null,null,null,null,null,null,null,null,null,null,null,null,null,null,null,null,null,null,null,null,null,null,null,null,null,null,856,60]
[null,null,null,null,null,null,null,null,null,null,null,null,null,null,null,null,null,null,null,null,null,null,null,null,null,null,null,null,null,null,null,null,null,null,null,null,null,null,null,null,null,null,null,null,null,null,null,null,null,null,null,null,null,null,null,null,null,null,null,null,null,null,null,null,null,null,null,null,null,null,null,null,null,null,null,null,null,null,null,null,null,null,null,null,null,null,null,null,null,null,null,null,null,null,null,null,null,null,null,null,857,80]
[null,null,null,null,null,null,null,null,null,null,null,null,null,null,null,null,null,null,null,null,null,null,null,null,null,null,null,null,null,null,null,null,null,null,null,null,null,null,null,null,null,null,null,null,null,null,null,null,null,null,null,null,null,null,null,null,null,null,null,null,null,null,null,null,null,null,null,null,null,null,null,null,null,null,null,null,null,null,null,null,null,null,null,null,null,null,null,null,null,null,null,null,null,null,null,null,null,null,null,null,858,100]
[null,null,null,null,null,null,null,null,null,null,null,null,null,null,null,null,null,null,null,null,null,null,null,null,null,null,null,null,null,null,null,null,null,null,null,null,null,null,null,null,null,null,null,null,null,null,null,null,null,null,null,null,null,null,null,null,null,null,null,null,null,null,null,null,null,null,null,null,null,null,null,null,null,null,null,null,null,null,null,null,null,null,null,null,null,null,null,null,null,null,null,null,null,null,null,null,null,null,null,null,859,180]
[null,null,null,null,null,null,null,null,null,null,null,null,null,null,null,null,null,null,null,null,null,null,null,null,null,null,null,null,null,null,null,null,null,null,null,null,null,null,null,null,null,null,null,null,null,null,null,null,null,null,null,null,null,null,null,null,null,null,null,null,null,null,null,null,null,null,null,null,null,null,null,null,null,null,null,null,null,null,null,null,null,null,null,null,null,null,null,null,null,null,null,null,null,null,null,null,null,null,null,null,860,260]
[null,null,null,null,null,null,null,null,null,null,null,null,null,null,null,null,null,null,null,null,null,null,null,null,null,null,null,null,null,null,null,null,null,null,null,null,null,null,null,null,null,null,null,null,null,null,null,null,null,null,null,null,null,null,null,null,null,null,null,null,null,null,null,null,null,null,null,null,null,null,null,null,null,null,null,null,null,null,null,null,null,null,null,null,null,null,null,null,null,null,null,null,null,null,null,null,null,null,null,null,861,240]
[null,null,null,null,null,null,null,null,null,null,null,null,null,null,null,null,null,null,null,null,null,null,null,null,null,null,null,null,null,null,null,null,null,null,null,null,null,null,null,null,null,null,null,null,null,null,null,null,null,null,null,null,null,null,null,null,null,null,null,null,null,null,null,null,null,null,null,null,null,null,null,null,null,null,null,null,null,null,null,null,null,null,null,null,null,null,null,null,null,null,null,null,null,null,null,null,null,null,null,null,862,280]
[null,null,null,null,null,null,null,null,null,null,null,null,null,null,null,null,null,null,null,null,null,null,null,null,null,null,null,null,null,null,null,null,null,null,null,null,null,null,null,null,null,null,null,null,null,null,null,null,null,null,null,null,null,null,null,null,null,null,null,null,null,null,null,null,null,null,null,null,null,null,null,null,null,null,null,null,null,null,null,null,null,null,null,null,null,null,null,null,null,null,null,null,null,null,null,null,null,null,null,null,863,280]
[null,null,null,null,null,null,null,null,null,null,null,null,null,null,null,null,null,null,null,null,null,null,null,null,null,null,null,null,null,null,null,null,null,null,null,null,null,null,null,null,null,null,null,null,null,null,null,null,null,null,null,null,null,null,null,null,null,null,null,null,null,null,null,null,null,null,null,null,null,null,null,null,null,null,null,null,null,null,null,null,null,null,null,null,null,null,null,null,null,null,null,null,null,null,null,null,null,null,null,null,864,280]
[null,null,null,null,null,null,null,null,null,null,null,null,null,null,null,null,null,null,null,null,null,null,null,null,null,null,null,null,null,null,null,null,null,null,null,null,null,null,null,null,null,null,null,null,null,null,null,null,null,null,null,null,null,null,null,null,null,null,null,null,null,null,null,null,null,null,null,null,null,null,null,null,null,null,null,null,null,null,null,null,null,null,null,null,null,null,null,null,null,null,null,null,null,null,null,null,null,null,null,null,865,280]
[null,null,null,null,null,null,null,null,null,null,null,null,null,null,null,null,null,null,null,null,null,null,null,null,null,null,null,null,null,null,null,null,null,null,null,null,null,null,null,null,null,null,null,null,null,null,null,null,null,null,null,null,null,null,null,null,null,null,null,null,null,null,null,null,null,null,null,null,null,null,null,null,null,null,null,null,null,null,null,null,null,null,null,null,null,null,null,null,null,null,null,null,null,null,null,null,null,null,null,null,866,280]
[null,null,null,null,null,null,null,null,null,null,null,null,null,null,null,null,null,null,null,null,null,null,null,null,null,null,null,null,null,null,null,null,null,null,null,null,null,null,null,null,null,null,null,null,null,null,null,null,null,null,null,null,null,null,null,null,null,null,null,null,null,null,null,null,null,null,null,null,null,null,null,null,null,null,null,null,null,null,null,null,null,null,null,null,null,null,null,null,null,null,null,null,null,null,null,null,null,null,null,null,867,280]
[null,null,null,null,null,null,null,null,null,null,null,null,null,null,null,null,null,null,null,null,null,null,null,null,null,null,null,null,null,null,null,null,null,null,null,null,null,null,null,null,null,null,null,null,null,null,null,null,null,null,null,null,null,null,null,null,null,null,null,null,null,null,null,null,null,null,null,null,null,null,null,null,null,null,null,null,null,null,null,null,null,null,null,null,null,null,null,null,null,null,null,null,null,null,null,null,null,null,null,null,868,280]
[null,null,null,null,null,null,null,null,null,null,null,null,null,null,null,null,null,null,null,null,null,null,null,null,null,null,null,null,null,null,null,null,null,null,null,null,null,null,null,null,null,null,null,null,null,null,null,null,null,null,null,null,null,null,null,null,null,null,null,null,null,null,null,null,null,null,null,null,null,null,null,null,null,null,null,null,null,null,null,null,null,null,null,null,null,null,null,null,null,null,null,null,null,null,null,null,null,null,null,null,869,280]
[null,null,null,null,null,null,null,null,null,null,null,null,null,null,null,null,null,null,null,null,null,null,null,null,null,null,null,null,null,null,null,null,null,null,null,null,null,null,null,null,null,null,null,null,null,null,null,null,null,null,null,null,null,null,null,null,null,null,null,null,null,null,null,null,null,null,null,null,null,null,null,null,null,null,null,null,null,null,null,null,null,null,null,null,null,null,null,null,null,null,null,null,null,null,null,null,null,null,null,null,870,280]
[null,null,null,null,null,null,null,null,null,null,null,null,null,null,null,null,null,null,null,null,null,null,null,null,null,null,null,null,null,null,null,null,null,null,null,null,null,null,null,null,null,null,null,null,null,null,null,null,null,null,null,null,null,null,null,null,null,null,null,null,null,null,null,null,null,null,null,null,null,null,null,null,null,null,null,null,null,null,null,null,null,null,null,null,null,null,null,null,null,null,null,null,null,null,null,null,null,null,null,null,871,280]
[null,null,null,null,null,null,null,null,null,null,null,null,null,null,null,null,null,null,null,null,null,null,null,null,null,null,null,null,null,null,null,null,null,null,null,null,null,null,null,null,null,null,null,null,null,null,null,null,null,null,null,null,null,null,null,null,null,null,null,null,null,null,null,null,null,null,null,null,null,null,null,null,null,null,null,null,null,null,null,null,null,null,null,null,null,null,null,null,null,null,null,null,null,null,null,null,null,null,null,null,872,280]
[null,null,null,null,null,null,null,null,null,null,null,null,null,null,null,null,null,null,null,null,null,null,null,null,null,null,null,null,null,null,null,null,null,null,null,null,null,null,null,null,null,null,null,null,null,null,null,null,null,null,null,null,null,null,null,null,null,null,null,null,null,null,null,null,null,null,null,null,null,null,null,null,null,null,null,null,null,null,null,null,null,null,null,null,null,null,null,null,null,null,null,null,null,null,null,null,null,null,null,null,873,280]
[null,null,null,null,null,null,null,null,null,null,null,null,null,null,null,null,null,null,null,null,null,null,null,null,null,null,null,null,null,null,null,null,null,null,null,null,null,null,null,null,null,null,null,null,null,null,null,null,null,null,null,null,null,null,null,null,null,null,null,null,null,null,null,null,null,null,null,null,null,null,null,null,null,null,null,null,null,null,null,null,null,null,null,null,null,null,null,null,null,null,null,null,null,null,null,null,null,null,null,null,874,280]
[null,null,null,null,null,null,null,null,null,null,null,null,null,null,null,null,null,null,null,null,null,null,null,null,null,null,null,null,null,null,null,null,null,null,null,null,null,null,null,null,null,null,null,null,null,null,null,null,null,null,null,null,null,null,null,null,null,null,null,null,null,null,null,null,null,null,null,null,null,null,null,null,null,null,null,null,null,null,null,null,null,null,null,null,null,null,null,null,null,null,null,null,null,null,null,null,null,null,null,null,875,280]
[null,null,null,null,null,null,null,null,null,null,null,null,null,null,null,null,null,null,null,null,null,null,null,null,null,null,null,null,null,null,null,null,null,null,null,null,null,null,null,null,null,null,null,null,null,null,null,null,null,null,null,null,null,null,null,null,null,null,null,null,null,null,null,null,null,null,null,null,null,null,null,null,null,null,null,null,null,null,null,null,null,null,null,null,null,null,null,null,null,null,null,null,null,null,null,null,null,null,null,null,876,280]
[null,null,null,null,null,null,null,null,null,null,null,null,null,null,null,null,null,null,null,null,null,null,null,null,null,null,null,null,null,null,null,null,null,null,null,null,null,null,null,null,null,null,null,null,null,null,null,null,null,null,null,null,null,null,null,null,null,null,null,null,null,null,null,null,null,null,null,null,null,null,null,null,null,null,null,null,null,null,null,null,null,null,null,null,null,null,null,null,null,null,null,null,null,null,null,null,null,null,null,null,877,280]
[null,null,null,null,null,null,null,null,null,null,null,null,null,null,null,null,null,null,null,null,null,null,null,null,null,null,null,null,null,null,null,null,null,null,null,null,null,null,null,null,null,null,null,null,null,null,null,null,null,null,null,null,null,null,null,null,null,null,null,null,null,null,null,null,null,null,null,null,null,null,null,null,null,null,null,null,null,null,null,null,null,null,null,null,null,null,null,null,null,null,null,null,null,null,null,null,null,null,null,null,878,280]
[null,null,null,null,null,null,null,null,null,null,null,null,null,null,null,null,null,null,null,null,null,null,null,null,null,null,null,null,null,null,null,null,null,null,null,null,null,null,null,null,null,null,null,null,null,null,null,null,null,null,null,null,null,null,null,null,null,null,null,null,null,null,null,null,null,null,null,null,null,null,null,null,null,null,null,null,null,null,null,null,null,null,null,null,null,null,null,null,null,null,null,null,null,null,null,null,null,null,null,null,879,280]
[null,null,null,null,null,null,null,null,null,null,null,null,null,null,null,null,null,null,null,null,null,null,null,null,null,null,null,null,null,null,null,null,null,null,null,null,null,null,null,null,null,null,null,null,null,null,null,null,null,null,null,null,null,null,null,null,null,null,null,null,null,null,null,null,null,null,null,null,null,null,null,null,null,null,null,null,null,null,null,null,null,null,null,null,null,null,null,null,null,null,null,null,null,null,null,null,null,null,null,null,880,280]
[null,null,null,null,null,null,null,null,null,null,null,null,null,null,null,null,null,null,null,null,null,null,null,null,null,null,null,null,null,null,null,null,null,null,null,null,null,null,null,null,null,null,null,null,null,null,null,null,null,null,null,null,null,null,null,null,null,null,null,null,null,null,null,null,null,null,null,null,null,null,null,null,null,null,null,null,null,null,null,null,null,null,null,null,null,null,null,null,null,null,null,null,null,null,null,null,null,null,null,null,881,280]
[null,null,null,null,null,null,null,null,null,null,null,null,null,null,null,null,null,null,null,null,null,null,null,null,null,null,null,null,null,null,null,null,null,null,null,null,null,null,null,null,null,null,null,null,null,null,null,null,null,null,null,null,null,null,null,null,null,null,null,null,null,null,null,null,null,null,null,null,null,null,null,null,null,null,null,null,null,null,null,null,null,null,null,null,null,null,null,null,null,null,null,null,null,null,null,null,null,null,null,null,882,280]
[null,null,null,null,null,null,null,null,null,null,null,null,null,null,null,null,null,null,null,null,null,null,null,null,null,null,null,null,null,null,null,null,null,null,null,null,null,null,null,null,null,null,null,null,null,null,null,null,null,null,null,null,null,null,null,null,null,null,null,null,null,null,null,null,null,null,null,null,null,null,null,null,null,null,null,null,null,null,null,null,null,null,null,null,null,null,null,null,null,null,null,null,null,null,null,null,null,null,null,null,883,280]
[null,null,null,null,null,null,null,null,null,null,null,null,null,null,null,null,null,null,null,null,null,null,null,null,null,null,null,null,null,null,null,null,null,null,null,null,null,null,null,null,null,null,null,null,null,null,null,null,null,null,null,null,null,null,null,null,null,null,null,null,null,null,null,null,null,null,null,null,null,null,null,null,null,null,null,null,null,null,null,null,null,null,null,null,null,null,null,null,null,null,null,null,null,null,null,null,null,null,null,null,884,280]
[null,null,null,null,null,null,null,null,null,null,null,null,null,null,null,null,null,null,null,null,null,null,null,null,null,null,null,null,null,null,null,null,null,null,null,null,null,null,null,null,null,null,null,null,null,null,null,null,null,null,null,null,null,null,null,null,null,null,null,null,null,null,null,null,null,null,null,null,null,null,null,null,null,null,null,null,null,null,null,null,null,null,null,null,null,null,null,null,null,null,null,null,null,null,null,null,null,null,null,null,885,280]
[null,null,null,null,null,null,null,null,null,null,null,null,null,null,null,null,null,null,null,null,null,null,null,null,null,null,null,null,null,null,null,null,null,null,null,null,null,null,null,null,null,null,null,null,null,null,null,null,null,null,null,null,null,null,null,null,null,null,null,null,null,null,null,null,null,null,null,null,null,null,null,null,null,null,null,null,null,null,null,null,null,null,null,null,null,null,null,null,null,null,null,null,null,null,null,null,null,null,null,null,886,280]
[null,null,null,null,null,null,null,null,null,null,null,null,null,null,null,null,null,null,null,null,null,null,null,null,null,null,null,null,null,null,null,null,null,null,null,null,null,null,null,null,null,null,null,null,null,null,null,null,null,null,null,null,null,null,null,null,null,null,null,null,null,null,null,null,null,null,null,null,null,null,null,null,null,null,null,null,null,null,null,null,null,null,null,null,null,null,null,null,null,null,null,null,null,null,null,null,null,null,null,null,887,280]
[null,null,null,null,null,null,null,null,null,null,null,null,null,null,null,null,null,null,null,null,null,null,null,null,null,null,null,null,null,null,null,null,null,null,null,null,null,null,null,null,null,null,null,null,null,null,null,null,null,null,null,null,null,null,null,null,null,null,null,null,null,null,null,null,null,null,null,null,null,null,null,null,null,null,null,null,null,null,null,null,null,null,null,null,null,null,null,null,null,null,null,null,null,null,null,null,null,null,null,null,888,280]
[null,null,null,null,null,null,null,null,null,null,null,null,null,null,null,null,null,null,null,null,null,null,null,null,null,null,null,null,null,null,null,null,null,null,null,null,null,null,null,null,null,null,null,null,null,null,null,null,null,null,null,null,null,null,null,null,null,null,null,null,null,null,null,null,null,null,null,null,null,null,null,null,null,null,null,null,null,null,null,null,null,null,null,null,null,null,null,null,null,null,null,null,null,null,null,null,null,null,null,null,889,240]
[null,null,null,null,null,null,null,null,null,null,null,null,null,null,null,null,null,null,null,null,null,null,null,null,null,null,null,null,null,null,null,null,null,null,null,null,null,null,null,null,null,null,null,null,null,null,null,null,null,null,null,null,null,null,null,null,null,null,null,null,null,null,null,null,null,null,null,null,null,null,null,null,null,null,null,null,null,null,null,null,null,null,null,null,null,null,null,null,null,null,null,null,null,null,null,null,null,null,null,null,890,280]
[null,null,null,null,null,null,null,null,null,null,null,null,null,null,null,null,null,null,null,null,null,null,null,null,null,null,null,null,null,null,null,null,null,null,null,null,null,null,null,null,null,null,null,null,null,null,null,null,null,null,null,null,null,null,null,null,null,null,null,null,null,null,null,null,null,null,null,null,null,null,null,null,null,null,null,null,null,null,null,null,null,null,null,null,null,null,null,null,null,null,null,null,null,null,null,null,null,null,null,null,891,280]
[null,null,null,null,null,null,null,null,null,null,null,null,null,null,null,null,null,null,null,null,null,null,null,null,null,null,null,null,null,null,null,null,null,null,null,null,null,null,null,null,null,null,null,null,null,null,null,null,null,null,null,null,null,null,null,null,null,null,null,null,null,null,null,null,null,null,null,null,null,null,null,null,null,null,null,null,null,null,null,null,null,null,null,null,null,null,null,null,null,null,null,null,null,null,null,null,null,null,null,null,892,280]
[null,null,null,null,null,null,null,null,null,null,null,null,null,null,null,null,null,null,null,null,null,null,null,null,null,null,null,null,null,null,null,null,null,null,null,null,null,null,null,null,null,null,null,null,null,null,null,null,null,null,null,null,null,null,null,null,null,null,null,null,null,null,null,null,null,null,null,null,null,null,null,null,null,null,null,null,null,null,null,null,null,null,null,null,null,null,null,null,null,null,null,null,null,null,null,null,null,null,null,null,950,280]
[null,null,null,null,null,null,null,null,null,null,null,null,null,null,null,null,null,null,null,null,null,null,null,null,null,null,null,null,null,null,null,null,null,null,null,null,null,null,null,null,null,null,null,null,null,null,null,null,null,null,null,null,null,null,null,null,null,null,null,null,null,null,null,null,null,null,null,null,null,null,null,null,null,null,null,null,null,null,null,null,null,null,null,null,null,null,null,null,null,null,null,null,null,null,null,null,null,null,null,null,951,280]
[null,null,null,null,null,null,null,null,null,null,null,null,null,null,null,null,null,null,null,null,null,null,null,null,null,null,null,null,null,null,null,null,null,null,null,null,null,null,null,null,null,null,null,null,null,null,null,null,null,null,null,null,null,null,null,null,null,null,null,null,null,null,null,null,null,null,null,null,null,null,null,null,null,null,null,null,null,null,null,null,null,null,null,null,null,null,null,null,null,null,null,null,null,null,null,null,null,null,null,null,952,280]
[null,null,null,null,null,null,null,null,null,null,null,null,null,null,null,null,null,null,null,null,null,null,null,null,null,null,null,null,null,null,null,null,null,null,null,null,null,null,null,null,null,null,null,null,null,null,null,null,null,null,null,null,null,null,null,null,null,null,null,null,null,null,null,null,null,null,null,null,null,null,null,null,null,null,null,null,null,null,null,null,null,null,null,null,null,null,null,null,null,null,null,null,null,null,null,null,null,null,null,null,953,280]
[null,null,null,null,null,null,null,null,null,null,null,null,null,null,null,null,null,null,null,null,null,null,null,null,null,null,null,null,null,null,null,null,null,null,null,null,null,null,null,null,null,null,null,null,null,null,null,null,null,null,null,null,null,null,null,null,null,null,null,null,null,null,null,null,null,null,null,null,null,null,null,null,null,null,null,null,null,null,null,null,null,null,null,null,null,null,null,null,null,null,null,null,null,null,null,null,null,null,null,null,954,280]
[null,null,null,null,null,null,null,null,null,null,null,null,null,null,null,null,null,null,null,null,null,null,null,null,null,null,null,null,null,null,null,null,null,null,null,null,null,null,null,null,null,null,null,null,null,null,null,null,null,null,null,null,null,null,null,null,null,null,null,null,null,null,null,null,null,null,null,null,null,null,null,null,null,null,null,null,null,null,null,null,null,null,null,null,null,null,null,null,null,null,null,null,null,null,null,null,null,null,null,null,955,280]
[null,null,null,null,null,null,null,null,null,null,null,null,null,null,null,null,null,null,null,null,null,null,null,null,null,null,null,null,null,null,null,null,null,null,null,null,null,null,null,null,null,null,null,null,null,null,null,null,null,null,null,null,null,null,null,null,null,null,null,null,null,null,null,null,null,null,null,null,null,null,null,null,null,null,null,null,null,null,null,null,null,null,null,null,null,null,null,null,null,null,null,null,null,null,null,null,null,null,null,null,956,280]
[null,null,null,null,null,null,null,null,null,null,null,null,null,null,null,null,null,null,null,null,null,null,null,null,null,null,null,null,null,null,null,null,null,null,null,null,null,null,null,null,null,null,null,null,null,null,null,null,null,null,null,null,null,null,null,null,null,null,null,null,null,null,null,null,null,null,null,null,null,null,null,null,null,null,null,null,null,null,null,null,null,null,null,null,null,null,null,null,null,null,null,null,null,null,null,null,null,null,null,null,957,280]
[null,null,null,null,null,null,null,null,null,null,null,null,null,null,null,null,null,null,null,null,null,null,null,null,null,null,null,null,null,null,null,null,null,null,null,null,null,null,null,null,null,null,null,null,null,null,null,null,null,null,null,null,null,null,null,null,null,null,null,null,null,null,null,null,null,null,null,null,null,null,null,null,null,null,null,null,null,null,null,null,null,null,null,null,null,null,null,null,null,null,null,null,null,null,null,null,null,null,null,null,960,280]
[null,null,null,null,null,null,null,null,null,null,null,null,null,null,null,null,null,null,null,null,null,null,null,null,null,null,null,null,null,null,null,null,null,null,null,null,null,null,null,null,null,null,null,null,null,null,null,null,null,null,null,null,null,null,null,null,null,null,null,null,null,null,null,null,null,null,null,null,null,null,null,null,null,null,null,null,null,null,null,null,null,null,null,null,null,null,null,null,null,null,null,null,null,null,null,null,null,null,null,null,961,280]
[null,null,null,null,null,null,null,null,null,null,null,null,null,null,null,null,null,null,null,null,null,null,null,null,null,null,null,null,null,null,null,null,null,null,null,null,null,null,null,null,null,null,null,null,null,null,null,null,null,null,null,null,null,null,null,null,null,null,null,null,null,null,null,null,null,null,null,null,null,null,null,null,null,null,null,null,null,null,null,null,null,null,null,null,null,null,null,null,null,null,null,null,null,null,null,null,null,null,null,null,962,280]
[null,null,null,null,null,null,null,null,null,null,null,null,null,null,null,null,null,null,null,null,null,null,null,null,null,null,null,null,null,null,null,null,null,null,null,null,null,null,null,null,null,null,null,null,null,null,null,null,null,null,null,null,null,null,null,null,null,null,null,null,null,null,null,null,null,null,null,null,null,null,null,null,null,null,null,null,null,null,null,null,null,null,null,null,null,null,null,null,null,null,null,null,null,null,null,null,null,null,null,null,963,280]
[null,null,null,null,null,null,null,null,null,null,null,null,null,null,null,null,null,null,null,null,null,null,null,null,null,null,null,null,null,null,null,null,null,null,null,null,null,null,null,null,null,null,null,null,null,null,null,null,null,null,null,null,null,null,null,null,null,null,null,null,null,null,null,null,null,null,null,null,null,null,null,null,null,null,null,null,null,null,null,null,null,null,null,null,null,null,null,null,null,null,null,null,null,null,null,null,null,null,null,null,964,280]
[null,null,null,null,null,null,null,null,null,null,null,null,null,null,null,null,null,null,null,null,null,null,null,null,null,null,null,null,null,null,null,null,null,null,null,null,null,null,null,null,null,null,null,null,null,null,null,null,null,null,null,null,null,null,null,null,null,null,null,null,null,null,null,null,null,null,null,null,null,null,null,null,null,null,null,null,null,null,null,null,null,null,null,null,null,null,null,null,null,null,null,null,null,null,null,null,null,null,null,null,965,280]
[null,null,null,null,null,null,null,null,null,null,null,null,null,null,null,null,null,null,null,null,null,null,null,null,null,null,null,null,null,null,null,null,null,null,null,null,null,null,null,null,null,null,null,null,null,null,null,null,null,null,null,null,null,null,null,null,null,null,null,null,null,null,null,null,null,null,null,null,null,null,null,null,null,null,null,null,null,null,null,null,null,null,null,null,null,null,null,null,null,null,null,null,null,null,null,null,null,null,null,null,966,280]
[null,null,null,null,null,null,null,null,null,null,null,null,null,null,null,null,null,null,null,null,null,null,null,null,null,null,null,null,null,null,null,null,null,null,null,null,null,null,null,null,null,null,null,null,null,null,null,null,null,null,null,null,null,null,null,null,null,null,null,null,null,null,null,null,null,null,null,null,null,null,null,null,null,null,null,null,null,null,null,null,null,null,null,null,null,null,null,null,null,null,null,null,null,null,null,null,null,null,null,null,967,280]
[null,null,null,null,null,null,null,null,null,null,null,null,null,null,null,null,null,null,null,null,null,null,null,null,null,null,null,null,null,null,null,null,null,null,null,null,null,null,null,null,null,null,null,null,null,null,null,null,null,null,null,null,null,null,null,null,null,null,null,null,null,null,null,null,null,null,null,null,null,null,null,null,null,null,null,null,null,null,null,null,null,null,null,null,null,null,null,null,null,null,null,null,null,null,null,null,null,null,null,null,970,280]
[null,null,null,null,null,null,null,null,null,null,null,null,null,null,null,null,null,null,null,null,null,null,null,null,null,null,null,null,null,null,null,null,null,null,null,null,null,null,null,null,null,null,null,null,null,null,null,null,null,null,null,null,null,null,null,null,null,null,null,null,null,null,null,null,null,null,null,null,null,null,null,null,null,null,null,null,null,null,null,null,null,null,null,null,null,null,null,null,null,null,null,null,null,null,null,null,null,null,null,null,980,280]
[null,null,null,null,null,null,null,null,null,null,null,null,null,null,null,null,null,null,null,null,null,null,null,null,null,null,null,null,null,null,null,null,null,null,null,null,null,null,null,null,null,null,null,null,null,null,null,null,null,null,null,null,null,null,null,null,null,null,null,null,null,null,null,null,null,null,null,null,null,null,null,null,null,null,null,null,null,null,null,null,null,null,null,null,null,null,null,null,null,null,null,null,null,null,null,null,null,null,null,null,981,280]
[null,null,null,null,null,null,null,null,null,null,null,null,null,null,null,null,null,null,null,null,null,null,null,null,null,null,null,null,null,null,null,null,null,null,null,null,null,null,null,null,null,null,null,null,null,null,null,null,null,null,null,null,null,null,null,null,null,null,null,null,null,null,null,null,null,null,null,null,null,null,null,null,null,null,null,null,null,null,null,null,null,null,null,null,null,null,null,null,null,null,null,null,null,null,null,null,null,null,null,null,982,280]
[null,null,null,null,null,null,null,null,null,null,null,null,null,null,null,null,null,null,null,null,null,null,null,null,null,null,null,null,null,null,null,null,null,null,null,null,null,null,null,null,null,null,null,null,null,null,null,null,null,null,null,null,null,null,null,null,null,null,null,null,null,null,null,null,null,null,null,null,null,null,null,null,null,null,null,null,null,null,null,null,null,null,null,null,null,null,null,null,null,null,null,null,null,null,null,null,null,null,null,null,983,280]
[null,null,null,null,null,null,null,null,null,null,null,null,null,null,null,null,null,null,null,null,null,null,null,null,null,null,null,null,null,null,null,null,null,null,null,null,null,null,null,null,null,null,null,null,null,null,null,null,null,null,null,null,null,null,null,null,null,null,null,null,null,null,null,null,null,null,null,null,null,null,null,null,null,null,null,null,null,null,null,null,null,null,null,null,null,null,null,null,null,null,null,null,null,null,null,null,null,null,null,null,984,280]
[null,null,null,null,null,null,null,null,null,null,null,null,null,null,null,null,null,null,null,null,null,null,null,null,null,null,null,null,null,null,null,null,null,null,null,null,null,null,null,null,null,null,null,null,null,null,null,null,null,null,null,null,null,null,null,null,null,null,null,null,null,null,null,null,null,null,null,null,null,null,null,null,null,null,null,null,null,null,null,null,null,null,null,null,null,null,null,null,null,null,null,null,null,null,null,null,null,null,null,null,985,280]
[null,null,null,null,null,null,null,null,null,null,null,null,null,null,null,null,null,null,null,null,null,null,null,null,null,null,null,null,null,null,null,null,null,null,null,null,null,null,null,null,null,null,null,null,null,null,null,null,null,null,null,null,null,null,null,null,null,null,null,null,null,null,null,null,null,null,null,null,null,null,null,null,null,null,null,null,null,null,null,null,null,null,null,null,null,null,null,null,null,null,null,null,null,null,null,null,null,null,null,null,986,280]
[null,null,null,null,null,null,null,null,null,null,null,null,null,null,null,null,null,null,null,null,null,null,null,null,null,null,null,null,null,null,null,null,null,null,null,null,null,null,null,null,null,null,null,null,null,null,null,null,null,null,null,null,null,null,null,null,null,null,null,null,null,null,null,null,null,null,null,null,null,null,null,null,null,null,null,null,null,null,null,null,null,null,null,null,null,null,null,null,null,null,null,null,null,null,null,null,null,null,null,null,987,280]
[null,null,null,null,null,null,null,null,null,null,null,null,null,null,null,null,null,null,null,null,null,null,null,null,null,null,null,null,null,null,null,null,null,null,null,null,null,null,null,null,null,null,null,null,null,null,null,null,null,null,null,null,null,null,null,null,null,null,null,null,null,null,null,null,null,null,null,null,null,null,null,null,null,null,null,null,null,null,null,null,null,null,null,null,null,null,null,null,null,null,null,null,null,null,null,null,null,null,null,null,990,280]
[null,null,null,null,null,null,null,null,null,null,null,null,null,null,null,null,null,null,null,null,null,null,null,null,null,null,null,null,null,null,null,null,null,null,null,null,null,null,null,null,null,null,null,null,null,null,null,null,null,null,null,null,null,null,null,null,null,null,null,null,null,null,null,null,null,null,null,null,null,null,null,null,null,null,null,null,null,null,null,null,null,null,null,null,null,null,null,null,null,null,null,null,null,null,null,null,null,null,null,null,995,0]

{"sheet":"Versions du fichier","index":2,"n_rows":10,"n_cols":33,"rows_kept":10,"cut":false,"hidden":true,"merged":[[0,0,0,16],[0,19,0,24]]}
["Programme d’investissement en aménagement forestier (PIAF) - Volet II\nForêt publique\nSuivi des versions du fichier de l'annexe au rapport et au calcul de l'aide à la récolte et au transport des volumes de feuillus durs\net de peuplier de trituration dans les aires d’intensification de la production ligneuse (AIPL) pour l’exercice 2023-2024",null,null,null,null,null,null,null,null,null,null,null,null,null,null,null,null,null,null,"Version 1 : 2023-07-05",null,null,null,null,null,null,null,null,null,null,null,null,{"$f":"TODAY()","v":"2023-07-05"}]
[]
["Version 1","Nom du fichier :","Calcul_aide_PIAF_Volet_II_AIPL_2023-2024_2023-03-22_Consultation"]
[{"$f":"A3","v":"Version 1"},"Date de mise en ligne :","2023-04-19 ou dans les jours suivants."]
[{"$f":"A4","v":"Version 1"},"Remarques :","• Version initiale proposée pour la période de consultation"]
[{"$f":"A5","v":"Version 1"}]
["Version 1","Nom du fichier :","Calcul_aide_PIAF_Volet_II_AIPL_2023-2024_2023-04-19_Consultation"]
["Version 1","Date de mise en ligne :","2023-07-05 ou dans les jours suivants."]
["Version 1","Remarques :","• Version officielle"]
[{"$f":"A9","v":"Version 1"}]

{"sheet":"Menus","index":3,"n_rows":256,"n_cols":5,"rows_kept":256,"cut":false,"hidden":true,"merged":[]}
["Question"]
["Oui"]
["Non"]
["Sans objet"]
["Non admissible"]
[]
["UA (R01 et R11 seulement)"]
["01171"]
["01272"]
["11161"]
["11262"]
["11263"]
[]
["Codes_Dica (fonction INDIRECT pour RATF)","Code_RATF","Indirect"]
["CPHRS-BOUQ","CPHRSBOUQ","RATF_CPHRSBOUQ"]
["CPHRS-ILOT","CPHRSILOT","RATF_CPHRSILOT"]
["CPHRS-SLEG","CPHRSSLEG","RATF_CPHRSSLEG"]
["CPHRS-TIGE","CPHRSTIGE","RATF_CPHRSTIGE"]
["CPPTM_DIS","CPPTMDIS","RATF_CPPTMDIS"]
["CPPTM_DIS-BOUQ","CPPTMBOUQ","RATF_CPPTMBOUQ"]
["CPPTM_DIS-ILOT","CPPTMILOT","RATF_CPPTMILOT"]
["CPPTM_U","CPPTMU","RATF_CPPTMU"]
["CPRS_BA","CPRSBA","RATF_CPRSBA"]
["CPRS_DA","CPRSDA","RATF_CPRSDA"]
["CPRS_PA","CPRSPA","RATF_CPRSPA"]
["CPRS_T","CPRST","RATF_CPRST"]
["CPRS_U-BOUQ","CPRSBOUQ","RATF_CPRSBOUQ"]
["CPRS_U-ILOT","CPRSILOT","RATF_CPRSILOT"]
["CPRS_U-SLEG","CPRSSLEG","RATF_CPRSSLEG"]
["CPRS_U-TIGE","CPRSTIGE","RATF_CPRSTIGE"]
["CRS-BOUQ","CRSBOUQ","RATF_CRSBOUQ"]
["CRS-ILOT","CRSILOT","RATF_CRSILOT"]
["CRS-SLEG","CRSSLEG","RATF_CRSSLEG"]
["CRS-TIGE","CRSTIGE","RATF_CRSTIGE"]
["CS-BOUQ","CSBOUQ","RATF_CSBOUQ"]
["CS-ILOT","CSILOT","RATF_CSILOT"]
["CS-SLEG","CSSLEG","RATF_CSSLEG"]
["CS-TIGE","CSTIGE","RATF_CSTIGE"]
["CTSP_BA","CTSPBA","RATF_CTSPBA"]
["CTSP_DA","CTSPDA","RATF_CTSPDA"]
["CTSP_PA","CTSPPA","RATF_CTSPPA"]
["CTSP_T","CTSPT","RATF_CTSPT"]
["CTSP_U-BOUQ","CTSPBOUQ","RATF_CTSPBOUQ"]
["CTSP_U-ILOT","CTSPILOT","RATF_CTSPILOT"]
["CTSP_U-SLEG","CTSPSLEG","RATF_CTSPSLEG"]
["CTSP_U-TIGE","CTSPTIGE","RATF_CTSPTIGE"]
["Inscrire une valeur",null,"RATF_Inscrire_une_valeur"]
[]
["Codes_RATF"]
["CPHRSBOUQ"]
["CPHRSILOT"]
["CPHRSSLEG"]
["CPHRSTIGE"]
["CPPTMDIS"]
["CPPTMBOUQ"]
["CPPTMILOT"]
["CPPTMU"]
["CPRSBA"]
["CPRSDA"]
["CPRSPA"]
["CPRST"]
["CPRSBOUQ"]
["CPRSILOT"]
["CPRSSLEG"]
["CPRSTIGE"]
["CRSBOUQ"]
["CRSILOT"]
["CRSSLEG"]
["CRSTIGE"]
["CSBOUQ"]
["CSILOT"]
["CSSLEG"]
["CSTIGE"]
["CTSPBA"]
["CTSPDA"]
["CTSPPA"]
["CTSPT"]
["CTSPBOUQ"]
["CTSPILOT"]
["CTSPSLEG"]
["CTSPTIGE"]
["Inscrire une valeur"]
[]
["Codes_DICA vs Codes_RATF (pas utilisé car inclus les coupes partielles)","Codes_RATF","Indirect","Description"]
["CJB-EMR","CJBM","RATF_CJB_EMR","Coupe de jardinage par bandes avec éclaircie dans la matrice résiduelle, Martelage"]
["CJB-EMR","CJBMO","RATF_CJB_EMR","Coupe de jardinage par bandes avec éclaircie dans la matrice résiduelle, Opérateur"]
["CJP-AM","CJPAM","RATF_CJP_AM","Coupe de jardinage par pieds d'arbre, amélioration de la qualité, Martelage"]
["CJPG-AM","CJPGAM","RATF_CJPG_AM","Coupe de jardinage par pieds d'arbre et groupes d'arbres, amélioration de la qualité, Martelage"]
["CJPG-HQ","CJPGHQ","RATF_CJPG_HQ","Coupe de jardinage par pieds d'arbre et groupes d'arbres, maintien d'une haute qualité, Martelage"]
["CJPG-QM","CJPGQM","RATF_CJPG_QM","Coupe de jardinage par pieds d'arbre et groupes d'arbres, maintien d'une qualité modérée, Martelage"]
["CJP-HQ","CJPHQ","RATF_CJP_HQ","Coupe de jardinage par pieds d'arbre, maintien d'une haute qualité, Martelage"]
["CJP-QM","CJPQM","RATF_CJP_QM","Coupe de jardinage par pieds d'arbre, maintien d'une qualité modérée, Martelage"]
["CJT-EMR","CJTM","RATF_CJT_EMR","Coupe de jardinage par trouées avec éclaircie dans la matrice résiduelle, Martelage"]
["CJT-EMR","CJTMO","RATF_CJT_EMR","Coupe de jardinage par trouées avec éclaircie dans la matrice résiduelle, Opérateur"]
["CPI_CP-ENS_B","CPIENSBMSF","RATF_CPI_CP_ENS_B","Coupe progressive irrégulière à couvert permanent par bandes, coupe d'ensemencement, Martelage, type de peuplement SEPM, feuillus intolérants et mixte résineux"]
["CPI_CP-ENS_B","CPIENSBOSF","RATF_CPI_CP_ENS_B","Coupe progressive irrégulière à couvert permanent par bandes, coupe d'ensemencement, Opérateur, type de peuplement SEPM, feuillus intolérants et mixte résineux"]
["CPI_CP-ENS_U","CPIUENSFM","RATF_CPI_CP_ENS_U","Coupe progressive irrégulière à couvert permanent, coupe d'ensemencement, patron d'intervention uniforme, Martelage,  type de peuplement feuillus tolérants, autres résineux et mixte feuillus"]
["CPI_CP-ENS_U","CPIUENSOFM","RATF_CPI_CP_ENS_U","Coupe progressive irrégulière à couvert permanent, coupe d'ensemencement, patron d'intervention uniforme, Opérateur,  type de peuplement feuillus tolérants, autres résineux et mixte feuillus"]
["CPI_CP-ENS_U","CPIUENSOSF","RATF_CPI_CP_ENS_U","Coupe progressive irrégulière à couvert permanent, coupe d'ensemencement, patron d'intervention uniforme, Opérateur,  type de peuplement SEPM, feuillus intolérants et mixte résineux"]
["CPI_CP-ENS_U","CPIUENSSF","RATF_CPI_CP_ENS_U","Coupe progressive irrégulière à couvert permanent, coupe d'ensemencement, patron d'intervention uniforme, Martelage,  type de peuplement SEPM, feuillus intolérants et mixte résineux"]
["CPI_CP-SEC_B","CPISECBMSF","RATF_CPI_CP_SEC_B","Coupe progressive irrégulière à couvert permanent par bandes, coupe secondaire, Martelage, type de peuplement SEPM, feuillus intolérants et mixte résineux"]
["CPI_CP-SEC_B","CPISECBOSF","RATF_CPI_CP_SEC_B","Coupe progressive irrégulière à couvert permanent par bandes, coupe secondaire, Opérateur, type de peuplement SEPM, feuillus intolérants et mixte résineux"]
["CPI_CP-SEC_U","CPIUSECFM","RATF_CPI_CP_SEC_U","Coupe progressive irrégulière à couvert permanent, coupe secondaire, patron d'intervention uniforme, Martelage,  type de peuplement feuillus tolérants, autres résineux et mixte feuillus"]
["CPI_CP-SEC_U","CPIUSECOFM","RATF_CPI_CP_SEC_U","Coupe progressive irrégulière à couvert permanent, coupe secondaire, patron d'intervention uniforme, Opérateur,  type de peuplement feuillus tolérants, autres résineux et mixte feuillus"]
["CPI_CP-SEC_U","CPIUSECOSF","RATF_CPI_CP_SEC_U","Coupe progressive irrégulière à couvert permanent, coupe secondaire, patron d'intervention uniforme, Opérateur,  type de peuplement SEPM, feuillus intolérants et mixte résineux"]
["CPI_CP-SEC_U","CPIUSECSF","RATF_CPI_CP_SEC_U","Coupe progressive irrégulière à couvert permanent, coupe secondaire, patron d'intervention uniforme, Martelage,  type de peuplement SEPM, feuillus intolérants et mixte résineux"]
["CPI_RL-1INR_ENS","1INRENSMFM","RATF_CPI_RL_1INR_ENS","Coupe progressive irrégulière à régénération lente en 1 intervention et abandon du volume résiduel, phase d'ensemencement, Martelage, type de peuplement feuillus tolérants, autres résineux et mixte feuillus"]
["CPI_RL-1INR_ENS","1INRENSMSF","RATF_CPI_RL_1INR_ENS","Coupe progressive irrégulière à régénération lente en 1 intervention et abandon du volume résiduel, phase d'ensemencement, Martelage, type de peuplement SEPM, feuillus intolérants et mixte résineux"]
["CPI_RL-1INR_ENS","1INRENSOFM","RATF_CPI_RL_1INR_ENS","Coupe progressive irrégulière à régénération lente en 1 intervention et abandon du volume résiduel, phase d'ensemencement, Opérateur, type de peuplement feuillus tolérants, autres résineux et mixte feuillus"]
["CPI_RL-1INR_ENS","1INRENSOSF","RATF_CPI_RL_1INR_ENS","Coupe progressive irrégulière à régénération lente en 1 intervention et abandon du volume résiduel, phase d'ensemencement, Opérateur, type de peuplement SEPM, feuillus intolérants et mixte résineux"]
["CPI_RL-1INR_MUL","1INRMULMFM","RATF_CPI_RL_1INR_MUL","Coupe progressive irrégulière à régénération lente en 1 intervention et abandon du volume résiduel, Multiples phases, Martelage, type de peuplement feuillus tolérants, autres résineux et mixte feuillus"]
["CPI_RL-1INR_MUL","1INRMULMSF","RATF_CPI_RL_1INR_MUL","Coupe progressive irrégulière à régénération lente en 1 intervention et abandon du volume résiduel, Multiples phases, Martelage, type de peuplement SEPM, feuillus intolérants et mixte résineux"]
["CPI_RL-1INR_MUL","1INRMULOFM","RATF_CPI_RL_1INR_MUL","Coupe progressive irrégulière à régénération lente en 1 intervention et abandon du volume résiduel, Multiples phases, Opérateur, type de peuplement feuillus tolérants, autres résineux et mixte feuillus"]
["CPI_RL-1INR_MUL","1INRMULOSF","RATF_CPI_RL_1INR_MUL","Coupe progressive irrégulière à régénération lente en 1 intervention et abandon du volume résiduel, Multiples phases, Opérateur, type de peuplement SEPM, feuillus intolérants et mixte résineux"]
["CPI_RL-1INR_SEC","1INRSECMFM","RATF_CPI_RL_1INR_SEC","Coupe progressive irrégulière à régénération lente en 1 intervention et abandon du volume résiduel, phase secondaire, Martelage, type de peuplement feuillus tolérants, autres résineux et mixte feuillus"]
["CPI_RL-1INR_SEC","1INRSECMSF","RATF_CPI_RL_1INR_SEC","Coupe progressive irrégulière à régénération lente en 1 intervention et abandon du volume résiduel, phase secondaire, Martelage, type de peuplement SEPM, feuillus intolérants et mixte résineux"]
["CPI_RL-1INR_SEC","1INRSECOFM","RATF_CPI_RL_1INR_SEC","Coupe progressive irrégulière à régénération lente en 1 intervention et abandon du volume résiduel, phase secondaire, Opérateur, type de peuplement feuillus tolérants, autres résineux et mixte feuillus"]
["CPI_RL-1INR_SEC","1INRSECOSF","RATF_CPI_RL_1INR_SEC","Coupe progressive irrégulière à régénération lente en 1 intervention et abandon du volume résiduel, phase secondaire, Opérateur, type de peuplement SEPM, feuillus intolérants et mixte résineux"]
["CPI_RL-2I_ENS","CPIL2ENOFM","RATF_CPI_RL_2I_ENS","Coupe progressive irrégulière à régénération lente, 2 interventions, coupe d'ensemencement, Opérateur, type de peuplement feuillus tolérants, autres résineux et mixte feuillus"]
["CPI_RL-2I_ENS","CPIL2ENOSF","RATF_CPI_RL_2I_ENS","Coupe progressive irrégulière à régénération lente, 2 interventions, coupe d'ensemencement, Opérateur, type de peuplement SEPM, feuillus intolérants et mixte résineux"]
["CPI_RL-2I_ENS","CPIRL2ENFM","RATF_CPI_RL_2I_ENS","Coupe progressive irrégulière à régénération lente, 2 interventions, coupe d'ensemencement, Martelage, type de peuplement feuillus tolérants, autres résineux et mixte feuillus"]
["CPI_RL-2I_ENS","CPIRL2ENSF","RATF_CPI_RL_2I_ENS","Coupe progressive irrégulière à régénération lente, 2 interventions, coupe d'ensemencement, Martelage, type de peuplement SEPM, feuillus intolérants et mixte résineux"]
["CPI_RL-2I_MUL","2IMULMFM","RATF_CPI_RL_2I_MUL","Coupe progressive irrégulière à régénération lente en 2 interventions et abandon du volume résiduel, Multiples phases, Martelage, type de peuplement feuillus tolérants, autres résineux et mixte feuillus"]
["CPI_RL-2I_MUL","2IMULMSF","RATF_CPI_RL_2I_MUL","Coupe progressive irrégulière à régénération lente en 2 interventions et abandon du volume résiduel, Multiples phases, Martelage, type de peuplement SEPM, feuillus intolérants et mixte résineux"]
["CPI_RL-2I_MUL","2IMULOFM","RATF_CPI_RL_2I_MUL","Coupe progressive irrégulière à régénération lente en 2 interventions et abandon du volume résiduel, Multiples phases, Opérateur, type de peuplement feuillus tolérants, autres résineux et mixte feuillus"]
["CPI_RL-2I_MUL","2IMULOSF","RATF_CPI_RL_2I_MUL","Coupe progressive irrégulière à régénération lente en 2 interventions et abandon du volume résiduel, Multiples phases, Opérateur, type de peuplement SEPM, feuillus intolérants et mixte résineux"]
["CPI_RL-2I_SEC","CPIL2SEOFM","RATF_CPI_RL_2I_SEC","Coupe progressive irrégulière à régénération lente, 2 interventions, coupe secondaire, Opérateur, type de peuplement feuillus tolérants, autres résineux, mixte feuillus"]
["CPI_RL-2I_SEC","CPIL2SEOSF","RATF_CPI_RL_2I_SEC","Coupe progressive irrégulière à régénération lente, 2 interventions, coupe secondaire, Opérateur, type de peuplement SEPM, feuillus intolérants, mixte résineux"]
["CPI_RL-2I_SEC","CPIRL2SEFM","RATF_CPI_RL_2I_SEC","Coupe progressive irrégulière à régénération lente, 2 interventions, coupe secondaire, Martelage, type de peuplement feuillus tolérants, autres résineux, mixte feuillus"]
["CPI_RL-2I_SEC","CPIRL2SESF","RATF_CPI_RL_2I_SEC","Coupe progressive irrégulière à régénération lente, 2 interventions, coupe secondaire, Martelage, type de peuplement SEPM, feuillus intolérants, mixte résineux"]
["CPI_RL-3I_ENS","CPIL3ENOFM","RATF_CPI_RL_3I_ENS","Coupe progressive irrégulière à régénération lente, 3 interventions, coupe d'ensemencement, Opérateur, type de peuplement feuillus tolérants, autres résineux et mixte feuillus"]
["CPI_RL-3I_ENS","CPIL3ENOSF","RATF_CPI_RL_3I_ENS","Coupe progressive irrégulière à régénération lente, 3 interventions, coupe d'ensemencement, Opérateur, type de peuplement SEPM, feuillus intolérants et mixte résineux"]
["CPI_RL-3I_ENS","CPIRL3ENFM","RATF_CPI_RL_3I_ENS","Coupe progressive irrégulière à régénération lente, 3 interventions, coupe d'ensemencement, Martelage, type de peuplement feuillus tolérants, autres résineux et mixte feuillus"]
["CPI_RL-3I_ENS","CPIRL3ENSF","RATF_CPI_RL_3I_ENS","Coupe progressive irrégulière à régénération lente, 3 interventions, coupe d'ensemencement, Martelage, type de peuplement SEPM, feuillus intolérants et mixte résineux"]
["CPI_RL-3I_MUL","3IMULMFM","RATF_CPI_RL_3I_MUL","Coupe progressive irrégulière à régénération lente en 3 interventions et abandon du volume résiduel, Multiples phases, Martelage, type de peuplement feuillus tolérants, autres résineux et mixte feuillus"]
["CPI_RL-3I_MUL","3IMULMSF","RATF_CPI_RL_3I_MUL","Coupe progressive irrégulière à régénération lente en 3 interventions et abandon du volume résiduel, Multiples phases, Martelage, type de peuplement SEPM, feuillus intolérants et mixte résineux"]
["CPI_RL-3I_MUL","3IMULOFM","RATF_CPI_RL_3I_MUL","Coupe progressive irrégulière à régénération lente en 3 interventions et abandon du volume résiduel, Multiples phases, Opérateur, type de peuplement feuillus tolérants, autres résineux et mixte feuillus"]
["CPI_RL-3I_MUL","3IMULOSF","RATF_CPI_RL_3I_MUL","Coupe progressive irrégulière à régénération lente en 3 interventions et abandon du volume résiduel, Multiples phases, Opérateur, type de peuplement SEPM, feuillus intolérants et mixte résineux"]
["CPI_RL-3I_SEC","CPIL3SEOFM","RATF_CPI_RL_3I_SEC","Coupe progressive irrégulière à régénération lente, 3 interventions, coupe secondaire, Opérateur, type de peuplement feuillus tolérants, autres résineux, mixte feuillus"]
["CPI_RL-3I_SEC","CPIL3SEOSF","RATF_CPI_RL_3I_SEC","Coupe progressive irrégulière à régénération lente, 3 interventions, coupe secondaire, Opérateur, type de peuplement SEPM, feuillus intolérants, mixte résineux"]
["CPI_RL-3I_SEC","CPIRL3SEFM","RATF_CPI_RL_3I_SEC","Coupe progressive irrégulière à régénération lente, 3 interventions, coupe secondaire, Martelage, type de peuplement feuillus tolérants, autres résineux, mixte feuillus"]
["CPI_RL-3I_SEC","CPIRL3SESF","RATF_CPI_RL_3I_SEC","Coupe progressive irrégulière à régénération lente, 3 interventions, coupe secondaire, Martelage, type de peuplement SEPM, feuillus intolérants, mixte résineux"]
["CPI_RL-MUL","CPILMULOFM","RATF_CPI_RL_MUL","Coupe progressive irrégulière à régénération lente, coupe multiples phases, Opérateur, type de peuplement feuillus tolérants, autres résineux et mixte feuillus"]
["CPI_RL-MUL","CPILMULOSF","RATF_CPI_RL_MUL","Coupe progressive irrégulière à régénération lente, coupe multiples phases, Opérateur, type de peuplement SEPM, feuillus intolérants, mixte feuillus"]
["CPI_RL-MUL","CPIRLMULFM","RATF_CPI_RL_MUL","Coupe progressive irrégulière à régénération lente, coupe multiples phases, Martelage, type de peuplement feuillus tolérants, autres résineux et mixte feuillus"]
["CPI_RL-MUL","CPIRLMULSF","RATF_CPI_RL_MUL","Coupe progressive irrégulière à régénération lente, coupe multiples phases, Martelage, type de peuplement SEPM, feuillus intolérants, mixte feuillus"]
["CPI_RL-PR","CPIRLPRFM","RATF_CPI_RL_PR","Coupe progressive irrégulière à régénération lente, coupe préparatoire, Martelage, type de peuplement feuillus tolérants, autres résineux et mixte feuillus"]
["CPI_RL-PR","CPIRLPROFM","RATF_CPI_RL_PR","Coupe progressive irrégulière à régénération lente, coupe préparatoire, Opérateur, type de peuplement feuillus tolérants, autres résineux et mixte feuillus"]
["CPI_RL-PR","CPIRLPROSF","RATF_CPI_RL_PR","Coupe progressive irrégulière à régénération lente, coupe préparatoire, Opérateur, type de peuplement SEPM, feuillus intolérants et mixte résineux"]
["CPI_RL-PR","CPIRLPRSF","RATF_CPI_RL_PR","Coupe progressive irrégulière à régénération lente, coupe préparatoire, Martelage, type de peuplement SEPM, feuillus intolérants et mixte résineux"]
["CPR_BA","CPRBAMFM","RATF_CPR_BA","Coupe progressive régulière par bande, Martelage, type de peuplement feuillus tolérants, autres résineux et mixte feuillus"]
["CPR_BA","CPRBAMSF","RATF_CPR_BA","Coupe progressive régulière par bande, Martelage, type de peuplement  SEPM, feuillus intolérants et mixte résineux"]
["CPR_BA","CPRBAOFM","RATF_CPR_BA","Coupe progressive régulière par bande, Opérateur, type de peuplement feuillus tolérants, autres résineux et mixte feuillus"]
["CPR_BA","CPRBAOSF","RATF_CPR_BA","Coupe progressive régulière par bande, Opérateur, type de peuplement  SEPM, feuillus intolérants et mixte résineux"]
["CPR_T","CPRTMFM","RATF_CPR_T","Coupe progressive régulière par troués, Martelage, type de peuplement feuillus tolérants, autres résineux et mixte feuillus"]
["CPR_T","CPRTMSF","RATF_CPR_T","Coupe progressive régulière par trouées, Martelage, type de peuplement  SEPM, feuillus intolérants et mixte résineux"]
["CPR_T","CPRTOFM","RATF_CPR_T","Coupe progressive régulière par trouées, Opérateur, type de peuplement feuillus tolérants, autres résineux et mixte feuillus"]
["CPR_T","CPRTOSF","RATF_CPR_T","Coupe progressive régulière par trouées, Opérateur, type de peuplement  SEPM, feuillus intolérants et mixte résineux"]
["CPR_U-ENS","CPRUENSFM","RATF_CPR_U_ENS","Coupe progressive régulière uniforme, coupe d'ensemencement, Martelage, type de peuplement feuillus tolérants, autres résineux et mixte feuillus"]
["CPR_U-ENS","CPRUENSOFM","RATF_CPR_U_ENS","Coupe progressive régulière uniforme, coupe d'ensemencement, Opérateur, type de peuplement feuillus tolérants, autres résineux et mixte feuillus"]
["CPR_U-ENS","CPRUENSOSF","RATF_CPR_U_ENS","Coupe progressive régulière uniforme, coupe d'ensemencement, Opérateur, type de peuplement SEPM, feuillus intolérants et mixte résineux"]
["CPR_U-ENS","CPRUENSSF","RATF_CPR_U_ENS","Coupe progressive régulière uniforme, coupe d'ensemencement, Martelage, type de peuplement SEPM, feuillus intolérants et mixte résineux"]
["CPR_U-PR","CPRUPRFM","RATF_CPR_U_PR","Coupe progressive régulière uniforme, coupe préparatoire, Martelage, type de peuplement feuillus tolérants, autres résineux et mixte feuillus"]
["CPR_U-PR","CPRUPROFM","RATF_CPR_U_PR","Coupe progressive régulière uniforme, coupe préparatoire, Opérateur, peuplement feuillus tolérants, autres résineux et mixte feuillus"]
["CPR_U-PR","CPRUPROSF","RATF_CPR_U_PR","Coupe progressive régulière uniforme, Coupe préparatoire, Opérateur, peuplement SEPM, feuillus intolérants et mixte résineux"]
["CPR_U-PR","CPRUPRSF","RATF_CPR_U_PR","Coupe progressive régulière uniforme, coupe préparatoire, Martelage, type de peuplement SEPM, feuillus intolérants et mixte résineux"]
["CPR_U-SEC","CPRUSECFM","RATF_CPR_U_SEC","Coupe progressive régulière uniforme, coupe secondaire, Martelage, type de peuplement feuillus tolérants, autres résineux et mixte feuillus"]
["CPR_U-SEC","CPRUSECOFM","RATF_CPR_U_SEC","Coupe progressive régulière uniforme, coupe secondaire, Opérateur, type de peuplement feuillus tolérants, autres résineux et mixte feuillus"]
["CPR_U-SEC","CPRUSECOSF","RATF_CPR_U_SEC","Coupe progressive régulière uniforme, coupe secondaire, Opérateur, type de peuplement SEPM, feuillus intolérants et mixte résineux"]
["CPR_U-SEC","CPRUSECSF","RATF_CPR_U_SEC","Coupe progressive régulière uniforme, coupe secondaire, Martelage, type de peuplement SEPM, feuillus intolérants et mixte résineux"]
["EC_MIXTE-BAS","ECMIXBASFM","RATF_EC_MIXTE_BAS","Éclaircie commerciale mixte par le bas, peuplement feuillus tolérants, autres résineux et mixte feuillus, taux variable"]
["EC_MIXTE-BAS","ECMIXBASSF","RATF_EC_MIXTE_BAS","Éclaircie commerciale mixte par le bas, peuplement SEPM, feuillus intolérants et mixte à tendance résineuse, taux variable"]
["EC_MIXTE-HAUT","ECMIXHAUFM","RATF_EC_MIXTE_HAUT","Éclaircie commerciale mixte par le haut, peuplement feuillus tolérants, autres résineux et mixte feuillus, taux variable"]
["EC_MIXTE-HAUT","ECMIXHAUSF","RATF_EC_MIXTE_HAUT","Éclaircie commerciale mixte par le haut, peuplement SEPM, feuillus intolérants et mixte à tendance résineuse, taux variable"]
["EC_MIXTE-NEUTRE","ECMIXNEUFM","RATF_EC_MIXTE_NEUTRE","Éclaircie commerciale patron d'intervention mixte neutre, peuplement feuillus tolérants, autres résineux et mixte feuillus, taux variable"]
["EC_MIXTE-NEUTRE","ECMIXNEUSF","RATF_EC_MIXTE_NEUTRE","Éclaircie commerciale mixte neutre, peuplement SEPM, feuillus intolérants et mixte à tendance résineuse, taux variable"]
["EC_SEL-BAS","ECSELBASFM","RATF_EC_SEL_BAS","Éclaircie commerciale sélective par le bas, peuplement feuillus tolérants, autres résineux et mixte feuillus, taux variable"]
["EC_SEL-BAS","ECSELBASSF","RATF_EC_SEL_BAS","Éclaircie commerciale sélective par le bas, peuplement SEPM et mixte à tendance résineuse et feuillus intolérants, taux variable"]
["EC_SEL-HAUT","ECSELHAUFM","RATF_EC_SEL_HAUT","Éclaircie commerciale sélective par le haut, peuplement feuillus tolérants, autres résineux et mixte feuillus, taux variable"]
["EC_SEL-HAUT","ECSELHAUSF","RATF_EC_SEL_HAUT","Éclaircie commerciale sélective par le haut, peuplement SEPM et mixte à tendance résineuse et feuillus intolérants, taux variable"]
["EC_SEL-NEUTRE","ECSELNEUFM","RATF_EC_SEL_NEUTRE","Éclaircie commerciale sélective neutre, peuplement feuillus tolérants, autres résineux et mixte feuillus, taux variable"]
["EC_SEL-NEUTRE","ECSELNEUSF","RATF_EC_SEL_NEUTRE","Éclaircie commerciale sélective neutre, peuplement SEPM et mixte à tendance résineuse et feuillus intolérants, taux variable"]
["EJ_P-CLAS","EJPCLAS","RATF_EJ_P_CLAS","Éclaircie jardinatoire par pied d'arbre classique ou finale, Martelage"]
["EJ_PG-CLAS","EJPGCLAS","RATF_EJ_PG_CLAS","Éclaircie jardinatoire par pied d'arbre et groupes d'arbres, classique ou finale, Martelage"]
["EJ_PG-INI","EJPGINI","RATF_EJ_PG_INI","Éclaircie jardinatoire par pied d'arbre et groupes d'arbres initiale, Martelage"]
["EJ_P-INI","EJPINI","RATF_EJ_P_INI","Éclaircie jardinatoire par pied d'arbre initiale, Martelage"]
["Inscrire une valeur",null,"RATF_Utilisateur"]
[]
["Zone de tarification","Ratio pâte PET","Ratio aide - référence ZT 190","Ratio pâte FD","Ratio pâte SEPM"]
[151,"S/O",0,"S/O","S/O"]
[152,"S/O",0,"S/O","S/O"]
[153,"S/O",0,"S/O","S/O"]
[154,"S/O",0,"S/O","S/O"]
[155,"S/O",0,"S/O","S/O"]
[156,"S/O",0,"S/O","S/O"]
[157,"S/O",0,"S/O","S/O"]
[158,"S/O",0,"S/O","S/O"]
[180,0.18320476838855362,0,0.86160000000000003,0.31935972606495466]
[181,0.18320476838855362,0.3125,0.90300000000000002,0.24957632931068446]
[182,0.18320476838855362,0,0.92269999999999996,0.26224210350363097]
[183,0.18320476838855362,0.1875,0.98019999999999996,0.24366642529567964]
[184,0.18320476838855362,0.875,0.95760000000000001,0.27399049022635985]
[185,0.18320476838855362,0.625,0.88049999999999995,0.23720525638335277]
[186,0.18320476838855362,0.3125,0.73880000000000001,0.3402258448799888]
[187,0.18320476838855362,0.5625,0.91910000000000003,0.24630774389802174]
[190,0.18320476838855362,1,0.97540000000000004,0.25782693413994567]
[191,0.18320476838855362,1,0.875,0.27588205762247608]
[192,0.18320476838855362,0.875,0.93600000000000005,0.2413652822098202]
[193,0.18320476838855362,0.625,0.96679999999999999,0.23701673488639347]
[194,0.18320476838855362,0.375,0.99850000000000005,0.29295157725726023]
[195,0.18320476838855362,0,0.95179999999999998,0.26703967115669108]
["Inscrire une valeur"]
[]
["Formule AIPL","Coefficients arrondis 4 (formules)","Coefficients - originaux VF"]
["Constante",{"$f":"ROUND($C$215,4)","v":4.0629},4.0628869378149561]
["Variable X 1",{"$f":"ROUND($C$216,4)","v":0.1027},0.10265808512589977]
["Variable X 2",{"$f":"ROUND($C$217,4)","v":2.7699999999999999E-2},2.7712363910468208E-2]
[]
["Réduction pour pâte PEU laissée en forêt (%)","Coefficients arrondis 4 (formules)","Coefficients - originaux VF"]
["Constante",{"$f":"ROUND($C$220,4)","v":-0.57279999999999998},-0.57277535366926735]
["Variable X 1",{"$f":"ROUND($C$221,4)","v":0.90529999999999999},0.90531454990987892]
["Variable X 2",{"$f":"ROUND($C$222,4)","v":-1.1903999999999999},-1.1904051230408992]
[]
["Réduction pour pâte SEPM et autres résineux laissé en forêt (%)","Coefficients arrondis 4 (formules)","Coefficients - originaux VF"]
["Constante",{"$f":"ROUND($C$225,4)","v":-9.0200000000000002E-2},-9.0227045504185088E-2]
["Variable X 1",{"$f":"ROUND($C$226,4)","v":0.82609999999999995},0.82610932566287132]
[]
["Seuils fixes"]
["Seuil maximal de rentabilité financière",1000]
["Seuil maximal réglementaire MLNU (calcul)",15]
[]
["Pénalités"]
["Peuplier et SEPM"]
["Peuplier"]
["SEPM"]
[]
["Seuils variables et pénalité - Planification (valeurs dynamiques)","Planification - Volume MLNU","Planification - Type de pénalité","Planification - %"]
["Seuil maximal pour pénalité % (calcul MLNU) : PEU=Non et SEPM=Non",{"$f":"IFERROR(IF((VLOOKUP('Calcul de l''aide - AIPL'!$I$10,Tableau_AIPL,2,FALSE)*'Calcul de l''aide - AIPL'!$G$20)+(VLOOKUP('Calcul de l''aide - AIPL'!$I$10,Tableau_AIPL,5,FALSE)*'Calcul de l''aide - AIPL'!$G$21)>Seuil_MLNU,(VLOOKUP('Calcul de l''aide - AIPL'!$I$10,Tableau_AIPL,2,FALSE)*'Calcul de l''aide - AIPL'!$G$20)+(VLOOKUP('Calcul de l''aide - AIPL'!$I$10,Tableau_AIPL,5,FALSE)*'Calcul de l''aide - AIPL'!$G$21),0),0)","v":0},{"$f":"IF(AND($B$238>Seuil_MLNU,'Calcul de l''aide - AIPL'!$G$20>0,'Calcul de l''aide - AIPL'!$G$21>0,EXACT(UPPER('Calcul de l''aide - AIPL'!$G$28),UPPER(Menus!$A$3)),EXACT(UPPER('Calcul de l''aide - AIPL'!$G$29),UPPER(Menus!$A$3))),Penalite_1,\"Option 2\")","v":"Option 2"},{"$f":"IF(IF(EXACT($C$238,Penalite_1),IF((-(Menus!$B$225+Menus!$B$226*('Calcul de l''aide - AIPL'!$G$21/'Calcul de l''aide - AIPL'!$G$18)))+(Menus!$B$220+('Calcul de l''aide - AIPL'!$G$19*(Menus!$B$221/'Calcul de l''aide - AIPL'!$G$18))+(Menus!$B$222*VLOOKUP('Calcul de l''aide - AIPL'!$I$10,Tableau_AIPL,2,FALSE)))<-1,-1,(-(Menus!$B$225+Menus!$B$226*('Calcul de l''aide - AIPL'!$G$21/'Calcul de l''aide - AIPL'!$G$18)))+(Menus!$B$220+('Calcul de l''aide - AIPL'!$G$19*(Menus!$B$221/'Calcul de l''aide - AIPL'!$G$18))+(Menus!$B$222*VLOOKUP('Calcul de l''aide - AIPL'!$I$10,Tableau_AIPL,2,FALSE)))),0)>0,0,IF(EXACT($C$238,Penalite_1),IF((-(Menus!$B$225+Menus!$B$226*('Calcul de l''aide - AIPL'!$G$21/'Calcul de l''aide - AIPL'!$G$18)))+(Menus!$B$220+('Calcul de l''aide - AIPL'!$G$19*(Menus!$B$221/'Calcul de l''aide - AIPL'!$G$18))+(Menus!$B$222*VLOOKUP('Calcul de l''aide - AIPL'!$I$10,Tableau_AIPL,2,FALSE)))<-1,-1,(-(Menus!$B$225+Menus!$B$226*('Calcul de l''aide - AIPL'!$G$21/'Calcul de l''aide - AIPL'!$G$18)))+(Menus!$B$220+('Calcul de l''aide - AIPL'!$G$19*(Menus!$B$221/'Calcul de l''aide - AIPL'!$G$18))+(Menus!$B$222*VLOOKUP('Calcul de l''aide - AIPL'!$I$10,Tableau_AIPL,2,FALSE)))),0))","v":0}]
["Seuil maximal pour pénalité % (calcul MLNU) : PEU=Non",{"$f":"IFERROR(IF((VLOOKUP('Calcul de l''aide - AIPL'!$I$10,Tableau_AIPL,2,FALSE)*'Calcul de l''aide - AIPL'!$G$20)>$B$230,(VLOOKUP('Calcul de l''aide - AIPL'!$I$10,Tableau_AIPL,2,FALSE)*'Calcul de l''aide - AIPL'!$G$20),0),0)","v":0},{"$f":"IF(AND($B$239>Seuil_MLNU,'Calcul de l''aide - AIPL'!$G$20>0,EXACT(UPPER('Calcul de l''aide - AIPL'!$G$28),UPPER(Menus!$A$3))),Penalite_2,\"Option 3\")","v":"Option 3"},{"$f":"IF(IF(IF(EXACT($C$239,Penalite_2),(Menus!$B$220+('Calcul de l''aide - AIPL'!$G$19*(Menus!$B$221/'Calcul de l''aide - AIPL'!$G$18))+(Menus!$B$222*VLOOKUP('Calcul de l''aide - AIPL'!$I$10,Tableau_AIPL,2,FALSE))),0)<-1,-1,IF(EXACT($C$239,Penalite_2),(Menus!$B$220+('Calcul de l''aide - AIPL'!$G$19*(Menus!$B$221/'Calcul de l''aide - AIPL'!$G$18))+(Menus!$B$222*VLOOKUP('Calcul de l''aide - AIPL'!$I$10,Tableau_AIPL,2,FALSE))),0))>0,0,IF(IF(EXACT($C$239,Penalite_2),(Menus!$B$220+('Calcul de l''aide - AIPL'!$G$19*(Menus!$B$221/'Calcul de l''aide - AIPL'!$G$18))+(Menus!$B$222*VLOOKUP('Calcul de l''aide - AIPL'!$I$10,Tableau_AIPL,2,FALSE))),0)<-1,-1,IF(EXACT($C$239,Penalite_2),(Menus!$B$220+('Calcul de l''aide - AIPL'!$G$19*(Menus!$B$221/'Calcul de l''aide - AIPL'!$G$18))+(Menus!$B$222*VLOOKUP('Calcul de l''aide - AIPL'!$I$10,Tableau_AIPL,2,FALSE))),0)))","v":0}]
["Seuil maximal pour pénalité % (calcul MLNU) : SEPM=Non",{"$f":"IFERROR(IF((VLOOKUP('Calcul de l''aide - AIPL'!$I$10,Tableau_AIPL,5,FALSE)*'Calcul de l''aide - AIPL'!$G$21)>$B$230,(VLOOKUP('Calcul de l''aide - AIPL'!$I$10,Tableau_AIPL,5,FALSE)*'Calcul de l''aide - AIPL'!$G$21),0),0)","v":0},{"$f":"IF(AND($B$240>Seuil_MLNU,'Calcul de l''aide - AIPL'!$G$21>0,UPPER('Calcul de l''aide - AIPL'!$G$28)<>UPPER(Menus!$A$3),EXACT(UPPER('Calcul de l''aide - AIPL'!$G$29),UPPER(Menus!$A$3))),Penalite_3,\"Aucune pénalité\")","v":"Aucune pénalité"},{"$f":"IF(IF(IF(EXACT($C$240,Penalite_3),(-(Menus!$B$225+Menus!$B$226*('Calcul de l''aide - AIPL'!$G$21/'Calcul de l''aide - AIPL'!$G$18))),0)<-1,-1,IF(EXACT($C$240,Penalite_3),(-(Menus!$B$225+Menus!$B$226*('Calcul de l''aide - AIPL'!$G$21/'Calcul de l''aide - AIPL'!$G$18))),0))>0,0,IF(IF(EXACT($C$240,Penalite_3),(-(Menus!$B$225+Menus!$B$226*('Calcul de l''aide - AIPL'!$G$21/'Calcul de l''aide - AIPL'!$G$18))),0)<-1,-1,IF(EXACT($C$240,Penalite_3),(-(Menus!$B$225+Menus!$B$226*('Calcul de l''aide - AIPL'!$G$21/'Calcul de l''aide - AIPL'!$G$18))),0)))","v":0}]
[]
["Seuils variables et pénalité - BGAD (valeurs dynamiques)","BGAD - Volume MLNU","BGAD - Type de pénalité","BGAD - %"]
["Seuil maximal pour pénalité % (calcul MLNU) : PEU=Non et SEPM=Non",{"$f":"IFERROR(IF((VLOOKUP('Calcul de l''aide - AIPL'!$I$10,Tableau_AIPL,2,FALSE)*'Calcul de l''aide - AIPL'!$H$20)+(VLOOKUP('Calcul de l''aide - AIPL'!$I$10,Tableau_AIPL,5,FALSE)*'Calcul de l''aide - AIPL'!$H$21)>Seuil_MLNU,(VLOOKUP('Calcul de l''aide - AIPL'!$I$10,Tableau_AIPL,2,FALSE)*'Calcul de l''aide - AIPL'!$H$20)+(VLOOKUP('Calcul de l''aide - AIPL'!$I$10,Tableau_AIPL,5,FALSE)*'Calcul de l''aide - AIPL'!$H$21),0),0)","v":0},{"$f":"IF(AND($B$243>Seuil_MLNU,'Calcul de l''aide - AIPL'!$H$20>0,'Calcul de l''aide - AIPL'!$H$21>0,EXACT(UPPER('Calcul de l''aide - AIPL'!$H$28),UPPER(Menus!$A$3)),EXACT(UPPER('Calcul de l''aide - AIPL'!$H$29),UPPER(Menus!$A$3))),Penalite_1,\"Option 2\")","v":"Option 2"},{"$f":"IF(IF(EXACT($C$243,Penalite_1),IF((-(Menus!$B$225+Menus!$B$226*('Calcul de l''aide - AIPL'!$H$21/'Calcul de l''aide - AIPL'!$H$18)))+(Menus!$B$220+('Calcul de l''aide - AIPL'!$H$19*(Menus!$B$221/'Calcul de l''aide - AIPL'!$H$18))+(Menus!$B$222*VLOOKUP('Calcul de l''aide - AIPL'!$I$10,Tableau_AIPL,2,FALSE)))<-1,-1,(-(Menus!$B$225+Menus!$B$226*('Calcul de l''aide - AIPL'!$H$21/'Calcul de l''aide - AIPL'!$H$18)))+(Menus!$B$220+('Calcul de l''aide - AIPL'!$H$19*(Menus!$B$221/'Calcul de l''aide - AIPL'!$H$18))+(Menus!$B$222*VLOOKUP('Calcul de l''aide - AIPL'!$I$10,Tableau_AIPL,2,FALSE)))),0)>0,0,IF(EXACT($C$243,Penalite_1),IF((-(Menus!$B$225+Menus!$B$226*('Calcul de l''aide - AIPL'!$H$21/'Calcul de l''aide - AIPL'!$H$18)))+(Menus!$B$220+('Calcul de l''aide - AIPL'!$H$19*(Menus!$B$221/'Calcul de l''aide - AIPL'!$H$18))+(Menus!$B$222*VLOOKUP('Calcul de l''aide - AIPL'!$I$10,Tableau_AIPL,2,FALSE)))<-1,-1,(-(Menus!$B$225+Menus!$B$226*('Calcul de l''aide - AIPL'!$H$21/'Calcul de l''aide - AIPL'!$H$18)))+(Menus!$B$220+('Calcul de l''aide - AIPL'!$H$19*(Menus!$B$221/'Calcul de l''aide - AIPL'!$H$18))+(Menus!$B$222*VLOOKUP('Calcul de l''aide - AIPL'!$I$10,Tableau_AIPL,2,FALSE)))),0))","v":0}]
["Seuil maximal pour pénalité % (calcul MLNU) : PEU=Non",{"$f":"IFERROR(IF((VLOOKUP('Calcul de l''aide - AIPL'!$I$10,Tableau_AIPL,2,FALSE)*'Calcul de l''aide - AIPL'!$H$20)>$B$230,(VLOOKUP('Calcul de l''aide - AIPL'!$I$10,Tableau_AIPL,2,FALSE)*'Calcul de l''aide - AIPL'!$H$20),0),0)","v":0},{"$f":"IF(AND($B$244>Seuil_MLNU,'Calcul de l''aide - AIPL'!$H$20>0,EXACT(UPPER('Calcul de l''aide - AIPL'!$H$28),UPPER(Menus!$A$3))),Penalite_2,\"Option 3\")","v":"Option 3"},{"$f":"IF(IF(IF(EXACT($C$244,Penalite_2),(Menus!$B$220+('Calcul de l''aide - AIPL'!$H$19*(Menus!$B$221/'Calcul de l''aide - AIPL'!$H$18))+(Menus!$B$222*VLOOKUP('Calcul de l''aide - AIPL'!$I$10,Tableau_AIPL,2,FALSE))),0)<-1,-1,IF(EXACT($C$244,Penalite_2),(Menus!$B$220+('Calcul de l''aide - AIPL'!$H$19*(Menus!$B$221/'Calcul de l''aide - AIPL'!$H$18))+(Menus!$B$222*VLOOKUP('Calcul de l''aide - AIPL'!$I$10,Tableau_AIPL,2,FALSE))),0))>0,0,IF(IF(EXACT($C$244,Penalite_2),(Menus!$B$220+('Calcul de l''aide - AIPL'!$H$19*(Menus!$B$221/'Calcul de l''aide - AIPL'!$H$18))+(Menus!$B$222*VLOOKUP('Calcul de l''aide - AIPL'!$I$10,Tableau_AIPL,2,FALSE))),0)<-1,-1,IF(EXACT($C$244,Penalite_2),(Menus!$B$220+('Calcul de l''aide - AIPL'!$H$19*(Menus!$B$221/'Calcul de l''aide - AIPL'!$H$18))+(Menus!$B$222*VLOOKUP('Calcul de l''aide - AIPL'!$I$10,Tableau_AIPL,2,FALSE))),0)))","v":0}]
["Seuil maximal pour pénalité % (calcul MLNU) : SEPM=Non",{"$f":"IFERROR(IF((VLOOKUP('Calcul de l''aide - AIPL'!$I$10,Tableau_AIPL,5,FALSE)*'Calcul de l''aide - AIPL'!$H$21)>$B$230,(VLOOKUP('Calcul de l''aide - AIPL'!$I$10,Tableau_AIPL,5,FALSE)*'Calcul de l''aide - AIPL'!$H$21),0),0)","v":0},{"$f":"IF(AND($B$245>Seuil_MLNU,'Calcul de l''aide - AIPL'!$H$21>0,UPPER('Calcul de l''aide - AIPL'!$H$28)<>UPPER(Menus!$A$3),EXACT(UPPER('Calcul de l''aide - AIPL'!$H$29),UPPER(Menus!$A$3))),Penalite_3,\"Aucune pénalité\")","v":"Aucune pénalité"},{"$f":"IF(IF(IF(EXACT($C$245,Penalite_3),(-(Menus!$B$225+Menus!$B$226*('Calcul de l''aide - AIPL'!$H$21/'Calcul de l''aide - AIPL'!$H$18))),0)<-1,-1,IF(EXACT($C$245,Penalite_3),(-(Menus!$B$225+Menus!$B$226*('Calcul de l''aide - AIPL'!$H$21/'Calcul de l''aide - AIPL'!$H$18))),0))>0,0,IF(IF(EXACT($C$245,Penalite_3),(-(Menus!$B$225+Menus!$B$226*('Calcul de l''aide - AIPL'!$H$21/'Calcul de l''aide - AIPL'!$H$18))),0)<-1,-1,IF(EXACT($C$245,Penalite_3),(-(Menus!$B$225+Menus!$B$226*('Calcul de l''aide - AIPL'!$H$21/'Calcul de l''aide - AIPL'!$H$18))),0)))","v":0}]
[]
["Seuils variables et pénalité - Ministère (valeurs dynamiques)","Ministère - Volume","Ministère - Type de pénalité","Ministère - %"]
["Seuil maximal pour pénalité % (calcul MLNU) : PEU=Non et SEPM=Non",{"$f":"IFERROR(IF((VLOOKUP('Calcul de l''aide - AIPL'!$I$10,Tableau_AIPL,2,FALSE)*'Calcul de l''aide - AIPL'!$I$20)+(VLOOKUP('Calcul de l''aide - AIPL'!$I$10,Tableau_AIPL,5,FALSE)*'Calcul de l''aide - AIPL'!$I$21)>Seuil_MLNU,(VLOOKUP('Calcul de l''aide - AIPL'!$I$10,Tableau_AIPL,2,FALSE)*'Calcul de l''aide - AIPL'!$I$20)+(VLOOKUP('Calcul de l''aide - AIPL'!$I$10,Tableau_AIPL,5,FALSE)*'Calcul de l''aide - AIPL'!$I$21),0),0)","v":0},{"$f":"IF(AND($B$248>Seuil_MLNU,'Calcul de l''aide - AIPL'!$I$20>0,'Calcul de l''aide - AIPL'!$I$21>0,EXACT(UPPER('Calcul de l''aide - AIPL'!$I$28),UPPER(Menus!$A$3)),EXACT(UPPER('Calcul de l''aide - AIPL'!$I$29),UPPER(Menus!$A$3))),Penalite_1,\"Option 2\")","v":"Option 2"},{"$f":"IF(IF(EXACT($C$248,Penalite_1),IF((-(Menus!$B$225+Menus!$B$226*('Calcul de l''aide - AIPL'!$I$21/'Calcul de l''aide - AIPL'!$I$18)))+(Menus!$B$220+('Calcul de l''aide - AIPL'!$I$19*(Menus!$B$221/'Calcul de l''aide - AIPL'!$I$18))+(Menus!$B$222*VLOOKUP('Calcul de l''aide - AIPL'!$I$10,Tableau_AIPL,2,FALSE)))<-1,-1,(-(Menus!$B$225+Menus!$B$226*('Calcul de l''aide - AIPL'!$I$21/'Calcul de l''aide - AIPL'!$I$18)))+(Menus!$B$220+('Calcul de l''aide - AIPL'!$I$19*(Menus!$B$221/'Calcul de l''aide - AIPL'!$I$18))+(Menus!$B$222*VLOOKUP('Calcul de l''aide - AIPL'!$I$10,Tableau_AIPL,2,FALSE)))),0)>0,0,IF(EXACT($C$248,Penalite_1),IF((-(Menus!$B$225+Menus!$B$226*('Calcul de l''aide - AIPL'!$I$21/'Calcul de l''aide - AIPL'!$I$18)))+(Menus!$B$220+('Calcul de l''aide - AIPL'!$I$19*(Menus!$B$221/'Calcul de l''aide - AIPL'!$I$18))+(Menus!$B$222*VLOOKUP('Calcul de l''aide - AIPL'!$I$10,Tableau_AIPL,2,FALSE)))<-1,-1,(-(Menus!$B$225+Menus!$B$226*('Calcul de l''aide - AIPL'!$I$21/'Calcul de l''aide - AIPL'!$I$18)))+(Menus!$B$220+('Calcul de l''aide - AIPL'!$I$19*(Menus!$B$221/'Calcul de l''aide - AIPL'!$I$18))+(Menus!$B$222*VLOOKUP('Calcul de l''aide - AIPL'!$I$10,Tableau_AIPL,2,FALSE)))),0))","v":0}]
["Seuil maximal pour pénalité % (calcul MLNU) : PEU=Non",{"$f":"IFERROR(IF((VLOOKUP('Calcul de l''aide - AIPL'!$I$10,Tableau_AIPL,2,FALSE)*'Calcul de l''aide - AIPL'!$I$20)>$B$230,(VLOOKUP('Calcul de l''aide - AIPL'!$I$10,Tableau_AIPL,2,FALSE)*'Calcul de l''aide - AIPL'!$I$20),0),0)","v":0},{"$f":"IF(AND($B$249>Seuil_MLNU,'Calcul de l''aide - AIPL'!$I$20>0,EXACT(UPPER('Calcul de l''aide - AIPL'!$I$28),UPPER(Menus!$A$3))),Penalite_2,\"Option 3\")","v":"Option 3"},{"$f":"IF(IF(IF(EXACT($C$249,Penalite_2),(Menus!$B$220+('Calcul de l''aide - AIPL'!$I$19*(Menus!$B$221/'Calcul de l''aide - AIPL'!$I$18))+(Menus!$B$222*VLOOKUP('Calcul de l''aide - AIPL'!$I$10,Tableau_AIPL,2,FALSE))),0)<-1,-1,IF(EXACT($C$249,Penalite_2),(Menus!$B$220+('Calcul de l''aide - AIPL'!$I$19*(Menus!$B$221/'Calcul de l''aide - AIPL'!$I$18))+(Menus!$B$222*VLOOKUP('Calcul de l''aide - AIPL'!$I$10,Tableau_AIPL,2,FALSE))),0))>0,0,IF(IF(EXACT($C$249,Penalite_2),(Menus!$B$220+('Calcul de l''aide - AIPL'!$I$19*(Menus!$B$221/'Calcul de l''aide - AIPL'!$I$18))+(Menus!$B$222*VLOOKUP('Calcul de l''aide - AIPL'!$I$10,Tableau_AIPL,2,FALSE))),0)<-1,-1,IF(EXACT($C$249,Penalite_2),(Menus!$B$220+('Calcul de l''aide - AIPL'!$I$19*(Menus!$B$221/'Calcul de l''aide - AIPL'!$I$18))+(Menus!$B$222*VLOOKUP('Calcul de l''aide - AIPL'!$I$10,Tableau_AIPL,2,FALSE))),0)))","v":0}]
["Seuil maximal pour pénalité % (calcul MLNU) : SEPM=Non",{"$f":"IFERROR(IF((VLOOKUP('Calcul de l''aide - AIPL'!$I$10,Tableau_AIPL,5,FALSE)*'Calcul de l''aide - AIPL'!$I$21)>$B$230,(VLOOKUP('Calcul de l''aide - AIPL'!$I$10,Tableau_AIPL,5,FALSE)*'Calcul de l''aide - AIPL'!$I$21),0),0)","v":0},{"$f":"IF(AND($B$250>Seuil_MLNU,'Calcul de l''aide - AIPL'!$I$21>0,UPPER('Calcul de l''aide - AIPL'!$I$28)<>UPPER(Menus!$A$3),EXACT(UPPER('Calcul de l''aide - AIPL'!$I$29),UPPER(Menus!$A$3))),Penalite_3,\"Aucune pénalité\")","v":"Aucune pénalité"},{"$f":"IF(IF(IF(EXACT($C$250,Penalite_3),(-(Menus!$B$225+Menus!$B$226*('Calcul de l''aide - AIPL'!$I$21/'Calcul de l''aide - AIPL'!$I$18))),0)<-1,-1,IF(EXACT($C$250,Penalite_3),(-(Menus!$B$225+Menus!$B$226*('Calcul de l''aide - AIPL'!$I$21/'Calcul de l''aide - AIPL'!$I$18))),0))>0,0,IF(IF(EXACT($C$250,Penalite_3),(-(Menus!$B$225+Menus!$B$226*('Calcul de l''aide - AIPL'!$I$21/'Calcul de l''aide - AIPL'!$I$18))),0)<-1,-1,IF(EXACT($C$250,Penalite_3),(-(Menus!$B$225+Menus!$B$226*('Calcul de l''aide - AIPL'!$I$21/'Calcul de l''aide - AIPL'!$I$18))),0)))","v":0}]
[]
["Contexte"]
["Planification"]
["BGAD"]
["Ministère"]
["Inscrire une valeur"]

{"sheet":"Log","index":4,"n_rows":11,"n_cols":4,"rows_kept":11,"cut":false,"hidden":true,"merged":[]}
["Utilisateur","Date","OS","Excel"]
["Pouliot, Simon (BMMB)","2022-04-27T10:38:26","Windows (64-bit) NT 10.00","16.0"]
["St-Pierre, Stéphane (BMMB)","2022-07-06T08:25:18","Windows (64-bit) NT 10.00","16.0"]
["St-Pierre, Stéphane (BMMB)","2022-07-08T10:47:52","Windows (64-bit) NT 10.00","16.0"]
["St-Pierre, Stéphane (BMMB)","2022-07-08T10:51:10","Windows (64-bit) NT 10.00","16.0"]
["St-Pierre, Stéphane (BMMB)","2022-10-04T10:06:55","Windows (64-bit) NT 10.00","16.0"]
["Gagné, Jean-Benoit (BMMB)","2023-03-22T14:43:06","Windows (64-bit) NT 10.00","16.0"]
["Gagné, Jean-Benoit (BMMB)","2023-04-19T15:10:50","Windows (64-bit) NT 10.00","16.0"]
["Gagné, Jean-Benoit (BMMB)","2023-06-13T11:47:46","Windows (64-bit) NT 10.00","16.0"]
["Gagné, Jean-Benoit (BMMB)","2023-07-05T13:37:50","Windows (64-bit) NT 10.00","16.0"]
["Gagné, Jean-Benoit (BMMB)","2023-07-05T15:04:12","Windows (64-bit) NT 10.00","16.0"]